{"text_format":"1","workbook":"xlsx","n_sheets":2,"sheets":["التصاريح","data"],"not_rendered":{"charts":0,"images":0,"macros":1,"external_links":0,"defined_names":3,"comments":0,"pivot_tables":0},"unopened":[],"bounds":{"document_bytes":16777216,"sheet_cells":100000,"rows_first":2000,"rows_last":500,"rows_between":2000,"halvings":0,"cell_chars":16384,"cell_head_chars":4096},"cells_cut":0,"cells_raw":0,"read":"whole","date_system":"1900"}

{"sheet":"التصاريح","index":0,"n_rows":50,"n_cols":9,"rows_kept":50,"cut":false,"hidden":false,"merged":[[2,2,2,3],[2,5,2,8],[0,1,1,10]]}
[null,"المطلوب : لما اختار منطقة يظهر لي جميع الصفوف ( يفلتر على اسم المنطقة ) وبعدين لما اختار الفرع يفلتر على اسم الفرع \nثم يقوم بحذف اسم الفرع لو تم اختيار منطقة جديدة وهكذا "]
[]
[null,"المنطقة :","الجميع",null,"الفرع :","الجميع"]
[]
["م","جهة الطلب","تاريخ الطلب","نوع الطلب","الفرع","المنطقة","مدة التصريح","بداية التصريح","نهاية التصريح"]
[{"$f":"IF(B6=\"\",\"\",SUBTOTAL(3,$B$6:B6))","v":1},"مصطفى","2022-01-01","عادي","محمد مختار 1","فيصل",42,"2022-01-01",{"$f":"H6+G6","v":"2022-02-12"}]
[{"$f":"IF(B7=\"\",\"\",SUBTOTAL(3,$B$6:B7))","v":2},"احمد","2022-01-01","خصوصي","محمد مسعد 1","الهرم",42,"2022-01-02",{"$f":"H7+G7","v":"2022-02-13"}]
[{"$f":"IF(B8=\"\",\"\",SUBTOTAL(3,$B$6:B8))","v":3},"علي","2022-01-01","عادي","أحمد علي 1","العباسية",42,"2022-01-03","2022-02-14"]
[{"$f":"IF(B9=\"\",\"\",SUBTOTAL(3,$B$6:B9))","v":4},"خالد","2022-01-01","خصوصي","سعيد إبراهيم 1","الرحاب",42,"2022-01-04","2022-02-15"]
[{"$f":"IF(B10=\"\",\"\",SUBTOTAL(3,$B$6:B10))","v":5},"مصطفى","2022-01-01","عادي","عبدالله محمد 1","امبابة",42,"2022-01-05","2022-02-16"]
[{"$f":"IF(B11=\"\",\"\",SUBTOTAL(3,$B$6:B11))","v":6},"محمد","2022-01-01","خصوصي","عثمان 1","الريان",42,"2022-01-06","2022-02-17"]
[{"$f":"IF(B12=\"\",\"\",SUBTOTAL(3,$B$6:B12))","v":7},"علي","2022-01-01","عادي","سالم أبو فدان 1","حدايق القبة",42,"2022-01-07","2022-02-18"]
[{"$f":"IF(B13=\"\",\"\",SUBTOTAL(3,$B$6:B13))","v":8},"محمود","2022-01-01","خصوصي","محمد مختار 2","فيصل",42,"2022-01-08","2022-02-19"]
[{"$f":"IF(B14=\"\",\"\",SUBTOTAL(3,$B$6:B14))","v":9},"محسن","2022-01-01","عادي","محمد مسعد 1","الهرم",42,"2022-01-09","2022-02-20"]
[{"$f":"IF(B15=\"\",\"\",SUBTOTAL(3,$B$6:B15))","v":10},"مصطفى","2022-01-01","خصوصي","أحمد علي 2","العباسية",42,"2022-01-10","2022-02-21"]
[{"$f":"IF(B16=\"\",\"\",SUBTOTAL(3,$B$6:B16))","v":11},"احمد","2022-01-01","عادي","سعيد إبراهيم 2","الرحاب",42,"2022-01-11","2022-02-22"]
[{"$f":"IF(B17=\"\",\"\",SUBTOTAL(3,$B$6:B17))","v":12},"علي","2022-01-01","خصوصي","عبدالله محمد 2","امبابة",42,"2022-01-12","2022-02-23"]
[{"$f":"IF(B18=\"\",\"\",SUBTOTAL(3,$B$6:B18))","v":13},"خالد","2022-01-01","عادي","عثمان 2","الريان",42,"2022-01-13","2022-02-24"]
[{"$f":"IF(B19=\"\",\"\",SUBTOTAL(3,$B$6:B19))","v":14},"مصطفى","2022-01-01","خصوصي","سالم أبو فدان 1","حدايق القبة",42,"2022-01-14","2022-02-25"]
[{"$f":"IF(B20=\"\",\"\",SUBTOTAL(3,$B$6:B20))","v":15},"محمد","2022-01-01","عادي","محمد مختار 3","فيصل",42,"2022-01-15","2022-02-26"]
[{"$f":"IF(B21=\"\",\"\",SUBTOTAL(3,$B$6:B21))","v":16},"علي","2022-01-01","خصوصي","محمد مسعد 1","الهرم",42,"2022-01-16","2022-02-27"]
[{"$f":"IF(B22=\"\",\"\",SUBTOTAL(3,$B$6:B22))","v":17},"محمود","2022-01-02","عادي","أحمد علي 3","العباسية",42,"2022-01-17","2022-02-28"]
[{"$f":"IF(B23=\"\",\"\",SUBTOTAL(3,$B$6:B23))","v":18},"محسن","2022-01-03","خصوصي","سعيد إبراهيم 1","الرحاب",42,"2022-01-18","2022-03-01"]
[{"$f":"IF(B24=\"\",\"\",SUBTOTAL(3,$B$6:B24))","v":19},"مصطفى","2022-01-04","عادي","عبدالله محمد 3","امبابة",42,"2022-01-19","2022-03-02"]
[{"$f":"IF(B25=\"\",\"\",SUBTOTAL(3,$B$6:B25))","v":20},"احمد","2022-01-05","خصوصي","عثمان 3","الريان",42,"2022-01-20","2022-03-03"]
[{"$f":"IF(B26=\"\",\"\",SUBTOTAL(3,$B$6:B26))","v":21},"علي","2022-01-06","عادي","سالم أبو فدان 1","حدايق القبة",42,"2022-01-21","2022-03-04"]
[{"$f":"IF(B27=\"\",\"\",SUBTOTAL(3,$B$6:B27))","v":22},"خالد","2022-01-07","خصوصي","محمد مختار 4","فيصل",42,"2022-01-22","2022-03-05"]
[{"$f":"IF(B28=\"\",\"\",SUBTOTAL(3,$B$6:B28))","v":23},"مصطفى","2022-01-07","عادي","محمد مسعد 1","الهرم",42,"2022-01-23","2022-03-06"]
[{"$f":"IF(B29=\"\",\"\",SUBTOTAL(3,$B$6:B29))","v":24},"محمد","2022-01-07","خصوصي","أحمد علي 1","العباسية",42,"2022-01-24","2022-03-07"]
[{"$f":"IF(B30=\"\",\"\",SUBTOTAL(3,$B$6:B30))","v":25},"علي","2022-01-07","عادي","سعيد إبراهيم 2","الرحاب",42,"2022-01-25","2022-03-08"]
[{"$f":"IF(B31=\"\",\"\",SUBTOTAL(3,$B$6:B31))","v":26},"محمود","2022-01-07","خصوصي","عبدالله محمد 1","امبابة",42,"2022-01-26","2022-03-09"]
[{"$f":"IF(B32=\"\",\"\",SUBTOTAL(3,$B$6:B32))","v":27},"محسن","2022-01-07","عادي","عثمان 1","الريان",42,"2022-01-27","2022-03-10"]
[{"$f":"IF(B33=\"\",\"\",SUBTOTAL(3,$B$6:B33))","v":28},"مصطفى","2022-01-07","خصوصي","سالم أبو فدان 1","حدايق القبة",42,"2022-01-28","2022-03-11"]
[{"$f":"IF(B34=\"\",\"\",SUBTOTAL(3,$B$6:B34))","v":29},"احمد","2022-01-08","عادي","محمد مختار 2","فيصل",42,"2022-01-29","2022-03-12"]
[{"$f":"IF(B35=\"\",\"\",SUBTOTAL(3,$B$6:B35))","v":30},"علي","2022-01-09","خصوصي","محمد مسعد 1","الهرم",42,"2022-01-30","2022-03-13"]
[{"$f":"IF(B36=\"\",\"\",SUBTOTAL(3,$B$6:B36))","v":31},"خالد","2022-01-10","عادي","أحمد علي 1","العباسية",42,"2022-01-31","2022-03-14"]
[{"$f":"IF(B37=\"\",\"\",SUBTOTAL(3,$B$6:B37))","v":32},"مصطفى","2022-01-11","خصوصي","سعيد إبراهيم 2","الرحاب",42,"2022-02-01","2022-03-15"]
[{"$f":"IF(B38=\"\",\"\",SUBTOTAL(3,$B$6:B38))","v":33},"محمد","2022-01-12","عادي","عبدالله محمد 1","امبابة",42,"2022-02-02","2022-03-16"]
[{"$f":"IF(B39=\"\",\"\",SUBTOTAL(3,$B$6:B39))","v":34},"علي","2022-01-13","خصوصي","عثمان 1","الريان",42,"2022-02-03","2022-03-17"]
[{"$f":"IF(B40=\"\",\"\",SUBTOTAL(3,$B$6:B40))","v":35},"محمود","2022-01-14","عادي","سالم أبو فدان 1","حدايق القبة",42,"2022-02-04",{"$f":"H40+G40","v":"2022-03-18"}]
[{"$f":"IF(B41=\"\",\"\",SUBTOTAL(3,$B$6:B41))","v":36},"محسن","2022-01-14","خصوصي","محمد مختار 1","فيصل",42,"2022-02-05","2022-03-19"]
[{"$f":"IF(B42=\"\",\"\",SUBTOTAL(3,$B$6:B42))","v":37},"مصطفى","2022-01-14","عادي","محمد مسعد 1","الهرم",42,"2022-02-06","2022-03-20"]
[{"$f":"IF(B43=\"\",\"\",SUBTOTAL(3,$B$6:B43))","v":38},"احمد","2022-01-14","خصوصي","أحمد علي 1","العباسية",42,"2022-02-07","2022-03-21"]
[{"$f":"IF(B44=\"\",\"\",SUBTOTAL(3,$B$6:B44))","v":39},"علي","2022-01-14","عادي","سعيد إبراهيم 1","الرحاب",42,"2022-02-08","2022-03-22"]
[{"$f":"IF(B45=\"\",\"\",SUBTOTAL(3,$B$6:B45))","v":40},"خالد","2022-01-14","خصوصي","عبدالله محمد 1","امبابة",42,"2022-02-09","2022-03-23"]
[{"$f":"IF(B46=\"\",\"\",SUBTOTAL(3,$B$6:B46))","v":41},"مصطفى","2022-01-14","عادي","عثمان 1","الريان",42,"2022-02-10","2022-03-24"]
[{"$f":"IF(B47=\"\",\"\",SUBTOTAL(3,$B$6:B47))","v":42},"محمد","2022-01-14","خصوصي","سالم أبو فدان 1","حدايق القبة",42,"2022-02-11","2022-03-25"]
[{"$f":"IF(B48=\"\",\"\",SUBTOTAL(3,$B$6:B48))","v":43},"محمود","2022-01-15","عادي","أحمد علي 15","العباسية",42,"2022-02-08","2022-03-22"]
[{"$f":"IF(B49=\"\",\"\",SUBTOTAL(3,$B$6:B49))","v":44},"مصطفى","2022-02-01","خصوصي","أحمد علي 2","العباسية",42,"2022-01-10",{"$f":"H49+G49","v":"2022-02-21"}]
[{"$f":"IF(B50=\"\",\"\",SUBTOTAL(3,$B$6:B50))","v":45},"مهند","2022-01-16","عادي","أحمد علي 1","العباسية",50,"2022-01-20","2022-03-11"]

{"sheet":"data","index":1,"n_rows":190,"n_cols":28,"rows_kept":190,"cut":false,"hidden":false,"merged":[]}
["م","كود الفرع","الفرع","المنطقة","العدد","عمود1","عمود2"]
[{"$f":"IF(C2=\"\",\"\",SUBTOTAL(3,$C$2:C2))","v":1},1,"الجميع","الجميع",0,{"$f":"IF(الجدول1[[#This Row],[المنطقة]]=التصاريح!$C$3,ROW()-1,\"\")","v":1},{"$f":"IFERROR(INDEX(الجدول1[الفرع],SMALL(الجدول1[عمود1],ROW()-1),1),\"\")","v":"الجميع"},null,null,null,null,null,null,null,null,null,null,null,null,null,null,null,null,null,null,null,{"$f":"IF(COUNTIF(D$2:$D2,D2)=1, MAX(Z$1:$AA1)+1,\"\")","v":1},{"$f":"IF(ROWS($Z$2:AB2)>ROW(INDIRECT(ADDRESS(MAX(AA:AA),2))),\"\",INDEX(INDIRECT(\"$D$2\"&\":$D$\"&MATCH(MAX(AA:AA),AA:AA,0)),MATCH(ROWS(D$1:$D1),INDIRECT(\"$AA$2\"&\":$AA$\"&MATCH(MAX(AA:AA),AA:AA,0)),0)))","v":"الجميع"}]
[{"$f":"IF(C3=\"\",\"\",SUBTOTAL(3,$C$2:C3))","v":2},2,"محمد مختار 1","فيصل",1,{"$f":"IF(الجدول1[[#This Row],[المنطقة]]=التصاريح!$C$3,ROW()-1,\"\")","v":""},{"$f":"IFERROR(INDEX(الجدول1[الفرع],SMALL(الجدول1[عمود1],ROW()-1),1),\"\")","v":""},null,null,null,null,null,null,null,null,null,null,null,null,null,null,null,null,null,null,null,{"$f":"IF(COUNTIF(D$2:$D3,D3)=1, MAX(Z$1:$AA2)+1,\"\")","v":2},{"$f":"IF(ROWS($Z$2:AB3)>ROW(INDIRECT(ADDRESS(MAX(AA:AA),2))),\"\",INDEX(INDIRECT(\"$D$2\"&\":$D$\"&MATCH(MAX(AA:AA),AA:AA,0)),MATCH(ROWS(D$1:$D2),INDIRECT(\"$AA$2\"&\":$AA$\"&MATCH(MAX(AA:AA),AA:AA,0)),0)))","v":"فيصل"}]
[{"$f":"IF(C4=\"\",\"\",SUBTOTAL(3,$C$2:C4))","v":3},3,"محمد مختار 2","فيصل",1,{"$f":"IF(الجدول1[[#This Row],[المنطقة]]=التصاريح!$C$3,ROW()-1,\"\")","v":""},{"$f":"IFERROR(INDEX(الجدول1[الفرع],SMALL(الجدول1[عمود1],ROW()-1),1),\"\")","v":""},null,null,null,null,null,null,null,null,null,null,null,null,null,null,null,null,null,null,null,{"$f":"IF(COUNTIF(D$2:$D4,D4)=1, MAX(Z$1:$AA3)+1,\"\")","v":""},{"$f":"IF(ROWS($Z$2:AB4)>ROW(INDIRECT(ADDRESS(MAX(AA:AA),2))),\"\",INDEX(INDIRECT(\"$D$2\"&\":$D$\"&MATCH(MAX(AA:AA),AA:AA,0)),MATCH(ROWS(D$1:$D3),INDIRECT(\"$AA$2\"&\":$AA$\"&MATCH(MAX(AA:AA),AA:AA,0)),0)))","v":"العباسية"}]
[{"$f":"IF(C5=\"\",\"\",SUBTOTAL(3,$C$2:C5))","v":4},4,"محمد مختار 3","فيصل",1,{"$f":"IF(الجدول1[[#This Row],[المنطقة]]=التصاريح!$C$3,ROW()-1,\"\")","v":""},{"$f":"IFERROR(INDEX(الجدول1[الفرع],SMALL(الجدول1[عمود1],ROW()-1),1),\"\")","v":""},null,null,null,null,null,null,null,null,null,null,null,null,null,null,null,null,null,null,null,{"$f":"IF(COUNTIF(D$2:$D5,D5)=1, MAX(Z$1:$AA4)+1,\"\")","v":""},{"$f":"IF(ROWS($Z$2:AB5)>ROW(INDIRECT(ADDRESS(MAX(AA:AA),2))),\"\",INDEX(INDIRECT(\"$D$2\"&\":$D$\"&MATCH(MAX(AA:AA),AA:AA,0)),MATCH(ROWS(D$1:$D4),INDIRECT(\"$AA$2\"&\":$AA$\"&MATCH(MAX(AA:AA),AA:AA,0)),0)))","v":"الهرم"}]
[{"$f":"IF(C6=\"\",\"\",SUBTOTAL(3,$C$2:C6))","v":5},5,"محمد مختار 4","فيصل",1,{"$f":"IF(الجدول1[[#This Row],[المنطقة]]=التصاريح!$C$3,ROW()-1,\"\")","v":""},{"$f":"IFERROR(INDEX(الجدول1[الفرع],SMALL(الجدول1[عمود1],ROW()-1),1),\"\")","v":""},null,null,null,null,null,null,null,null,null,null,null,null,null,null,null,null,null,null,null,{"$f":"IF(COUNTIF(D$2:$D6,D6)=1, MAX(Z$1:$AA5)+1,\"\")","v":""},{"$f":"IF(ROWS($Z$2:AB6)>ROW(INDIRECT(ADDRESS(MAX(AA:AA),2))),\"\",INDEX(INDIRECT(\"$D$2\"&\":$D$\"&MATCH(MAX(AA:AA),AA:AA,0)),MATCH(ROWS(D$1:$D5),INDIRECT(\"$AA$2\"&\":$AA$\"&MATCH(MAX(AA:AA),AA:AA,0)),0)))","v":"الرحاب"}]
[{"$f":"IF(C7=\"\",\"\",SUBTOTAL(3,$C$2:C7))","v":6},6,"محمد مختار5","فيصل",1,{"$f":"IF(الجدول1[[#This Row],[المنطقة]]=التصاريح!$C$3,ROW()-1,\"\")","v":""},{"$f":"IFERROR(INDEX(الجدول1[الفرع],SMALL(الجدول1[عمود1],ROW()-1),1),\"\")","v":""},null,null,null,null,null,null,null,null,null,null,null,null,null,null,null,null,null,null,null,{"$f":"IF(COUNTIF(D$2:$D7,D7)=1, MAX(Z$1:$AA6)+1,\"\")","v":""},{"$f":"IF(ROWS($Z$2:AB7)>ROW(INDIRECT(ADDRESS(MAX(AA:AA),2))),\"\",INDEX(INDIRECT(\"$D$2\"&\":$D$\"&MATCH(MAX(AA:AA),AA:AA,0)),MATCH(ROWS(D$1:$D6),INDIRECT(\"$AA$2\"&\":$AA$\"&MATCH(MAX(AA:AA),AA:AA,0)),0)))","v":"امبابة"}]
[{"$f":"IF(C8=\"\",\"\",SUBTOTAL(3,$C$2:C8))","v":7},7,"محمد مختار 6","فيصل",1,{"$f":"IF(الجدول1[[#This Row],[المنطقة]]=التصاريح!$C$3,ROW()-1,\"\")","v":""},{"$f":"IFERROR(INDEX(الجدول1[الفرع],SMALL(الجدول1[عمود1],ROW()-1),1),\"\")","v":""},null,null,null,null,null,null,null,null,null,null,null,null,null,null,null,null,null,null,null,{"$f":"IF(COUNTIF(D$2:$D8,D8)=1, MAX(Z$1:$AA7)+1,\"\")","v":""},{"$f":"IF(ROWS($Z$2:AB8)>ROW(INDIRECT(ADDRESS(MAX(AA:AA),2))),\"\",INDEX(INDIRECT(\"$D$2\"&\":$D$\"&MATCH(MAX(AA:AA),AA:AA,0)),MATCH(ROWS(D$1:$D7),INDIRECT(\"$AA$2\"&\":$AA$\"&MATCH(MAX(AA:AA),AA:AA,0)),0)))","v":"الريان"}]
[{"$f":"IF(C9=\"\",\"\",SUBTOTAL(3,$C$2:C9))","v":8},8,"محمد مختار 7","فيصل",2,{"$f":"IF(الجدول1[[#This Row],[المنطقة]]=التصاريح!$C$3,ROW()-1,\"\")","v":""},{"$f":"IFERROR(INDEX(الجدول1[الفرع],SMALL(الجدول1[عمود1],ROW()-1),1),\"\")","v":""},null,null,null,null,null,null,null,null,null,null,null,null,null,null,null,null,null,null,null,{"$f":"IF(COUNTIF(D$2:$D9,D9)=1, MAX(Z$1:$AA8)+1,\"\")","v":""},{"$f":"IF(ROWS($Z$2:AB9)>ROW(INDIRECT(ADDRESS(MAX(AA:AA),2))),\"\",INDEX(INDIRECT(\"$D$2\"&\":$D$\"&MATCH(MAX(AA:AA),AA:AA,0)),MATCH(ROWS(D$1:$D8),INDIRECT(\"$AA$2\"&\":$AA$\"&MATCH(MAX(AA:AA),AA:AA,0)),0)))","v":"حدايق القبة"}]
[{"$f":"IF(C10=\"\",\"\",SUBTOTAL(3,$C$2:C10))","v":9},9,"محمد مختار8","فيصل",2,{"$f":"IF(الجدول1[[#This Row],[المنطقة]]=التصاريح!$C$3,ROW()-1,\"\")","v":""},{"$f":"IFERROR(INDEX(الجدول1[الفرع],SMALL(الجدول1[عمود1],ROW()-1),1),\"\")","v":""},null,null,null,null,null,null,null,null,null,null,null,null,null,null,null,null,null,null,null,{"$f":"IF(COUNTIF(D$2:$D10,D10)=1, MAX(Z$1:$AA9)+1,\"\")","v":""},{"$f":"IF(ROWS($Z$2:AB10)>ROW(INDIRECT(ADDRESS(MAX(AA:AA),2))),\"\",INDEX(INDIRECT(\"$D$2\"&\":$D$\"&MATCH(MAX(AA:AA),AA:AA,0)),MATCH(ROWS(D$1:$D9),INDIRECT(\"$AA$2\"&\":$AA$\"&MATCH(MAX(AA:AA),AA:AA,0)),0)))","v":""}]
[{"$f":"IF(C11=\"\",\"\",SUBTOTAL(3,$C$2:C11))","v":10},22,"أحمد علي 1","العباسية",2,{"$f":"IF(الجدول1[[#This Row],[المنطقة]]=التصاريح!$C$3,ROW()-1,\"\")","v":""},{"$f":"IFERROR(INDEX(الجدول1[الفرع],SMALL(الجدول1[عمود1],ROW()-1),1),\"\")","v":""},null,null,null,null,null,null,null,null,null,null,null,null,null,null,null,null,null,null,null,{"$f":"IF(COUNTIF(D$2:$D11,D11)=1, MAX(Z$1:$AA10)+1,\"\")","v":3},{"$f":"IF(ROWS($Z$2:AB11)>ROW(INDIRECT(ADDRESS(MAX(AA:AA),2))),\"\",INDEX(INDIRECT(\"$D$2\"&\":$D$\"&MATCH(MAX(AA:AA),AA:AA,0)),MATCH(ROWS(D$1:$D10),INDIRECT(\"$AA$2\"&\":$AA$\"&MATCH(MAX(AA:AA),AA:AA,0)),0)))","v":""}]
[{"$f":"IF(C12=\"\",\"\",SUBTOTAL(3,$C$2:C12))","v":11},23,"أحمد علي 2","العباسية",11,{"$f":"IF(الجدول1[[#This Row],[المنطقة]]=التصاريح!$C$3,ROW()-1,\"\")","v":""},{"$f":"IFERROR(INDEX(الجدول1[الفرع],SMALL(الجدول1[عمود1],ROW()-1),1),\"\")","v":""},null,null,null,null,null,null,null,null,null,null,null,null,null,null,null,null,null,null,null,{"$f":"IF(COUNTIF(D$2:$D12,D12)=1, MAX(Z$1:$AA11)+1,\"\")","v":""},{"$f":"IF(ROWS($Z$2:AB12)>ROW(INDIRECT(ADDRESS(MAX(AA:AA),2))),\"\",INDEX(INDIRECT(\"$D$2\"&\":$D$\"&MATCH(MAX(AA:AA),AA:AA,0)),MATCH(ROWS(D$1:$D11),INDIRECT(\"$AA$2\"&\":$AA$\"&MATCH(MAX(AA:AA),AA:AA,0)),0)))","v":""}]
[{"$f":"IF(C13=\"\",\"\",SUBTOTAL(3,$C$2:C13))","v":12},24,"أحمد علي 3","العباسية",10,{"$f":"IF(الجدول1[[#This Row],[المنطقة]]=التصاريح!$C$3,ROW()-1,\"\")","v":""},{"$f":"IFERROR(INDEX(الجدول1[الفرع],SMALL(الجدول1[عمود1],ROW()-1),1),\"\")","v":""},null,null,null,null,null,null,null,null,null,null,null,null,null,null,null,null,null,null,null,{"$f":"IF(COUNTIF(D$2:$D13,D13)=1, MAX(Z$1:$AA12)+1,\"\")","v":""},{"$f":"IF(ROWS($Z$2:AB13)>ROW(INDIRECT(ADDRESS(MAX(AA:AA),2))),\"\",INDEX(INDIRECT(\"$D$2\"&\":$D$\"&MATCH(MAX(AA:AA),AA:AA,0)),MATCH(ROWS(D$1:$D12),INDIRECT(\"$AA$2\"&\":$AA$\"&MATCH(MAX(AA:AA),AA:AA,0)),0)))","v":""}]
[{"$f":"IF(C14=\"\",\"\",SUBTOTAL(3,$C$2:C14))","v":13},25,"أحمد علي 4","العباسية",10,{"$f":"IF(الجدول1[[#This Row],[المنطقة]]=التصاريح!$C$3,ROW()-1,\"\")","v":""},{"$f":"IFERROR(INDEX(الجدول1[الفرع],SMALL(الجدول1[عمود1],ROW()-1),1),\"\")","v":""},null,null,null,null,null,null,null,null,null,null,null,null,null,null,null,null,null,null,null,{"$f":"IF(COUNTIF(D$2:$D14,D14)=1, MAX(Z$1:$AA13)+1,\"\")","v":""},{"$f":"IF(ROWS($Z$2:AB14)>ROW(INDIRECT(ADDRESS(MAX(AA:AA),2))),\"\",INDEX(INDIRECT(\"$D$2\"&\":$D$\"&MATCH(MAX(AA:AA),AA:AA,0)),MATCH(ROWS(D$1:$D13),INDIRECT(\"$AA$2\"&\":$AA$\"&MATCH(MAX(AA:AA),AA:AA,0)),0)))","v":""}]
[{"$f":"IF(C15=\"\",\"\",SUBTOTAL(3,$C$2:C15))","v":14},26,"أحمد علي 5","العباسية",10,{"$f":"IF(الجدول1[[#This Row],[المنطقة]]=التصاريح!$C$3,ROW()-1,\"\")","v":""},{"$f":"IFERROR(INDEX(الجدول1[الفرع],SMALL(الجدول1[عمود1],ROW()-1),1),\"\")","v":""},null,null,null,null,null,null,null,null,null,null,null,null,null,null,null,null,null,null,null,{"$f":"IF(COUNTIF(D$2:$D15,D15)=1, MAX(Z$1:$AA14)+1,\"\")","v":""},{"$f":"IF(ROWS($Z$2:AB15)>ROW(INDIRECT(ADDRESS(MAX(AA:AA),2))),\"\",INDEX(INDIRECT(\"$D$2\"&\":$D$\"&MATCH(MAX(AA:AA),AA:AA,0)),MATCH(ROWS(D$1:$D14),INDIRECT(\"$AA$2\"&\":$AA$\"&MATCH(MAX(AA:AA),AA:AA,0)),0)))","v":""}]
[{"$f":"IF(C16=\"\",\"\",SUBTOTAL(3,$C$2:C16))","v":15},47,"محمد مسعد 1","الهرم",5,{"$f":"IF(الجدول1[[#This Row],[المنطقة]]=التصاريح!$C$3,ROW()-1,\"\")","v":""},{"$f":"IFERROR(INDEX(الجدول1[الفرع],SMALL(الجدول1[عمود1],ROW()-1),1),\"\")","v":""},null,null,null,null,null,null,null,null,null,null,null,null,null,null,null,null,null,null,null,{"$f":"IF(COUNTIF(D$2:$D16,D16)=1, MAX(Z$1:$AA15)+1,\"\")","v":4},{"$f":"IF(ROWS($Z$2:AB16)>ROW(INDIRECT(ADDRESS(MAX(AA:AA),2))),\"\",INDEX(INDIRECT(\"$D$2\"&\":$D$\"&MATCH(MAX(AA:AA),AA:AA,0)),MATCH(ROWS(D$1:$D15),INDIRECT(\"$AA$2\"&\":$AA$\"&MATCH(MAX(AA:AA),AA:AA,0)),0)))","v":""}]
[{"$f":"IF(C17=\"\",\"\",SUBTOTAL(3,$C$2:C17))","v":16},48,"محمد مسعد2","الهرم",1,{"$f":"IF(الجدول1[[#This Row],[المنطقة]]=التصاريح!$C$3,ROW()-1,\"\")","v":""},{"$f":"IFERROR(INDEX(الجدول1[الفرع],SMALL(الجدول1[عمود1],ROW()-1),1),\"\")","v":""},null,null,null,null,null,null,null,null,null,null,null,null,null,null,null,null,null,null,null,{"$f":"IF(COUNTIF(D$2:$D17,D17)=1, MAX(Z$1:$AA16)+1,\"\")","v":""},{"$f":"IF(ROWS($Z$2:AB17)>ROW(INDIRECT(ADDRESS(MAX(AA:AA),2))),\"\",INDEX(INDIRECT(\"$D$2\"&\":$D$\"&MATCH(MAX(AA:AA),AA:AA,0)),MATCH(ROWS(D$1:$D16),INDIRECT(\"$AA$2\"&\":$AA$\"&MATCH(MAX(AA:AA),AA:AA,0)),0)))","v":""}]
[{"$f":"IF(C18=\"\",\"\",SUBTOTAL(3,$C$2:C18))","v":17},49,"محمد مسعد3","الهرم",1,{"$f":"IF(الجدول1[[#This Row],[المنطقة]]=التصاريح!$C$3,ROW()-1,\"\")","v":""},{"$f":"IFERROR(INDEX(الجدول1[الفرع],SMALL(الجدول1[عمود1],ROW()-1),1),\"\")","v":""},null,null,null,null,null,null,null,null,null,null,null,null,null,null,null,null,null,null,null,{"$f":"IF(COUNTIF(D$2:$D18,D18)=1, MAX(Z$1:$AA17)+1,\"\")","v":""},{"$f":"IF(ROWS($Z$2:AB18)>ROW(INDIRECT(ADDRESS(MAX(AA:AA),2))),\"\",INDEX(INDIRECT(\"$D$2\"&\":$D$\"&MATCH(MAX(AA:AA),AA:AA,0)),MATCH(ROWS(D$1:$D17),INDIRECT(\"$AA$2\"&\":$AA$\"&MATCH(MAX(AA:AA),AA:AA,0)),0)))","v":""}]
[{"$f":"IF(C19=\"\",\"\",SUBTOTAL(3,$C$2:C19))","v":18},58,"سعيد إبراهيم 1","الرحاب",1,{"$f":"IF(الجدول1[[#This Row],[المنطقة]]=التصاريح!$C$3,ROW()-1,\"\")","v":""},{"$f":"IFERROR(INDEX(الجدول1[الفرع],SMALL(الجدول1[عمود1],ROW()-1),1),\"\")","v":""},null,null,null,null,null,null,null,null,null,null,null,null,null,null,null,null,null,null,null,{"$f":"IF(COUNTIF(D$2:$D19,D19)=1, MAX(Z$1:$AA18)+1,\"\")","v":5},{"$f":"IF(ROWS($Z$2:AB19)>ROW(INDIRECT(ADDRESS(MAX(AA:AA),2))),\"\",INDEX(INDIRECT(\"$D$2\"&\":$D$\"&MATCH(MAX(AA:AA),AA:AA,0)),MATCH(ROWS(D$1:$D18),INDIRECT(\"$AA$2\"&\":$AA$\"&MATCH(MAX(AA:AA),AA:AA,0)),0)))","v":""}]
[{"$f":"IF(C20=\"\",\"\",SUBTOTAL(3,$C$2:C20))","v":19},59,"سعيد إبراهيم 2","الرحاب",1,{"$f":"IF(الجدول1[[#This Row],[المنطقة]]=التصاريح!$C$3,ROW()-1,\"\")","v":""},{"$f":"IFERROR(INDEX(الجدول1[الفرع],SMALL(الجدول1[عمود1],ROW()-1),1),\"\")","v":""},null,null,null,null,null,null,null,null,null,null,null,null,null,null,null,null,null,null,null,{"$f":"IF(COUNTIF(D$2:$D20,D20)=1, MAX(Z$1:$AA19)+1,\"\")","v":""},{"$f":"IF(ROWS($Z$2:AB20)>ROW(INDIRECT(ADDRESS(MAX(AA:AA),2))),\"\",INDEX(INDIRECT(\"$D$2\"&\":$D$\"&MATCH(MAX(AA:AA),AA:AA,0)),MATCH(ROWS(D$1:$D19),INDIRECT(\"$AA$2\"&\":$AA$\"&MATCH(MAX(AA:AA),AA:AA,0)),0)))","v":""}]
[{"$f":"IF(C21=\"\",\"\",SUBTOTAL(3,$C$2:C21))","v":20},60,"سعيد إبراهيم 3","الرحاب",1,{"$f":"IF(الجدول1[[#This Row],[المنطقة]]=التصاريح!$C$3,ROW()-1,\"\")","v":""},{"$f":"IFERROR(INDEX(الجدول1[الفرع],SMALL(الجدول1[عمود1],ROW()-1),1),\"\")","v":""},null,null,null,null,null,null,null,null,null,null,null,null,null,null,null,null,null,null,null,{"$f":"IF(COUNTIF(D$2:$D21,D21)=1, MAX(Z$1:$AA20)+1,\"\")","v":""},{"$f":"IF(ROWS($Z$2:AB21)>ROW(INDIRECT(ADDRESS(MAX(AA:AA),2))),\"\",INDEX(INDIRECT(\"$D$2\"&\":$D$\"&MATCH(MAX(AA:AA),AA:AA,0)),MATCH(ROWS(D$1:$D20),INDIRECT(\"$AA$2\"&\":$AA$\"&MATCH(MAX(AA:AA),AA:AA,0)),0)))","v":""}]
[{"$f":"IF(C22=\"\",\"\",SUBTOTAL(3,$C$2:C22))","v":21},61,"سعيد إبراهيم 4","الرحاب",1,{"$f":"IF(الجدول1[[#This Row],[المنطقة]]=التصاريح!$C$3,ROW()-1,\"\")","v":""},{"$f":"IFERROR(INDEX(الجدول1[الفرع],SMALL(الجدول1[عمود1],ROW()-1),1),\"\")","v":""},null,null,null,null,null,null,null,null,null,null,null,null,null,null,null,null,null,null,null,{"$f":"IF(COUNTIF(D$2:$D22,D22)=1, MAX(Z$1:$AA21)+1,\"\")","v":""},{"$f":"IF(ROWS($Z$2:AB22)>ROW(INDIRECT(ADDRESS(MAX(AA:AA),2))),\"\",INDEX(INDIRECT(\"$D$2\"&\":$D$\"&MATCH(MAX(AA:AA),AA:AA,0)),MATCH(ROWS(D$1:$D21),INDIRECT(\"$AA$2\"&\":$AA$\"&MATCH(MAX(AA:AA),AA:AA,0)),0)))","v":""}]
[{"$f":"IF(C23=\"\",\"\",SUBTOTAL(3,$C$2:C23))","v":22},62,"سعيد إبراهيم 5","الرحاب",1,{"$f":"IF(الجدول1[[#This Row],[المنطقة]]=التصاريح!$C$3,ROW()-1,\"\")","v":""},{"$f":"IFERROR(INDEX(الجدول1[الفرع],SMALL(الجدول1[عمود1],ROW()-1),1),\"\")","v":""},null,null,null,null,null,null,null,null,null,null,null,null,null,null,null,null,null,null,null,{"$f":"IF(COUNTIF(D$2:$D23,D23)=1, MAX(Z$1:$AA22)+1,\"\")","v":""},{"$f":"IF(ROWS($Z$2:AB23)>ROW(INDIRECT(ADDRESS(MAX(AA:AA),2))),\"\",INDEX(INDIRECT(\"$D$2\"&\":$D$\"&MATCH(MAX(AA:AA),AA:AA,0)),MATCH(ROWS(D$1:$D22),INDIRECT(\"$AA$2\"&\":$AA$\"&MATCH(MAX(AA:AA),AA:AA,0)),0)))","v":""}]
[{"$f":"IF(C24=\"\",\"\",SUBTOTAL(3,$C$2:C24))","v":23},69,"عبدالله محمد 1","امبابة",1,{"$f":"IF(الجدول1[[#This Row],[المنطقة]]=التصاريح!$C$3,ROW()-1,\"\")","v":""},{"$f":"IFERROR(INDEX(الجدول1[الفرع],SMALL(الجدول1[عمود1],ROW()-1),1),\"\")","v":""},null,null,null,null,null,null,null,null,null,null,null,null,null,null,null,null,null,null,null,{"$f":"IF(COUNTIF(D$2:$D24,D24)=1, MAX(Z$1:$AA23)+1,\"\")","v":6},{"$f":"IF(ROWS($Z$2:AB24)>ROW(INDIRECT(ADDRESS(MAX(AA:AA),2))),\"\",INDEX(INDIRECT(\"$D$2\"&\":$D$\"&MATCH(MAX(AA:AA),AA:AA,0)),MATCH(ROWS(D$1:$D23),INDIRECT(\"$AA$2\"&\":$AA$\"&MATCH(MAX(AA:AA),AA:AA,0)),0)))","v":""}]
[{"$f":"IF(C25=\"\",\"\",SUBTOTAL(3,$C$2:C25))","v":24},70,"عبدالله محمد 2","امبابة",1,{"$f":"IF(الجدول1[[#This Row],[المنطقة]]=التصاريح!$C$3,ROW()-1,\"\")","v":""},{"$f":"IFERROR(INDEX(الجدول1[الفرع],SMALL(الجدول1[عمود1],ROW()-1),1),\"\")","v":""},null,null,null,null,null,null,null,null,null,null,null,null,null,null,null,null,null,null,null,{"$f":"IF(COUNTIF(D$2:$D25,D25)=1, MAX(Z$1:$AA24)+1,\"\")","v":""},{"$f":"IF(ROWS($Z$2:AB25)>ROW(INDIRECT(ADDRESS(MAX(AA:AA),2))),\"\",INDEX(INDIRECT(\"$D$2\"&\":$D$\"&MATCH(MAX(AA:AA),AA:AA,0)),MATCH(ROWS(D$1:$D24),INDIRECT(\"$AA$2\"&\":$AA$\"&MATCH(MAX(AA:AA),AA:AA,0)),0)))","v":""}]
[{"$f":"IF(C26=\"\",\"\",SUBTOTAL(3,$C$2:C26))","v":25},71,"عبدالله محمد 5","امبابة",1,{"$f":"IF(الجدول1[[#This Row],[المنطقة]]=التصاريح!$C$3,ROW()-1,\"\")","v":""},{"$f":"IFERROR(INDEX(الجدول1[الفرع],SMALL(الجدول1[عمود1],ROW()-1),1),\"\")","v":""},null,null,null,null,null,null,null,null,null,null,null,null,null,null,null,null,null,null,null,{"$f":"IF(COUNTIF(D$2:$D26,D26)=1, MAX(Z$1:$AA25)+1,\"\")","v":""},{"$f":"IF(ROWS($Z$2:AB26)>ROW(INDIRECT(ADDRESS(MAX(AA:AA),2))),\"\",INDEX(INDIRECT(\"$D$2\"&\":$D$\"&MATCH(MAX(AA:AA),AA:AA,0)),MATCH(ROWS(D$1:$D25),INDIRECT(\"$AA$2\"&\":$AA$\"&MATCH(MAX(AA:AA),AA:AA,0)),0)))","v":""}]
[{"$f":"IF(C27=\"\",\"\",SUBTOTAL(3,$C$2:C27))","v":26},72,"عبدالله محمد 6","امبابة",10,{"$f":"IF(الجدول1[[#This Row],[المنطقة]]=التصاريح!$C$3,ROW()-1,\"\")","v":""},{"$f":"IFERROR(INDEX(الجدول1[الفرع],SMALL(الجدول1[عمود1],ROW()-1),1),\"\")","v":""},null,null,null,null,null,null,null,null,null,null,null,null,null,null,null,null,null,null,null,{"$f":"IF(COUNTIF(D$2:$D27,D27)=1, MAX(Z$1:$AA26)+1,\"\")","v":""},{"$f":"IF(ROWS($Z$2:AB27)>ROW(INDIRECT(ADDRESS(MAX(AA:AA),2))),\"\",INDEX(INDIRECT(\"$D$2\"&\":$D$\"&MATCH(MAX(AA:AA),AA:AA,0)),MATCH(ROWS(D$1:$D26),INDIRECT(\"$AA$2\"&\":$AA$\"&MATCH(MAX(AA:AA),AA:AA,0)),0)))","v":""}]
[{"$f":"IF(C28=\"\",\"\",SUBTOTAL(3,$C$2:C28))","v":27},73,"عبدالله محمد3","امبابة",12,{"$f":"IF(الجدول1[[#This Row],[المنطقة]]=التصاريح!$C$3,ROW()-1,\"\")","v":""},{"$f":"IFERROR(INDEX(الجدول1[الفرع],SMALL(الجدول1[عمود1],ROW()-1),1),\"\")","v":""},null,null,null,null,null,null,null,null,null,null,null,null,null,null,null,null,null,null,null,{"$f":"IF(COUNTIF(D$2:$D28,D28)=1, MAX(Z$1:$AA27)+1,\"\")","v":""},{"$f":"IF(ROWS($Z$2:AB28)>ROW(INDIRECT(ADDRESS(MAX(AA:AA),2))),\"\",INDEX(INDIRECT(\"$D$2\"&\":$D$\"&MATCH(MAX(AA:AA),AA:AA,0)),MATCH(ROWS(D$1:$D27),INDIRECT(\"$AA$2\"&\":$AA$\"&MATCH(MAX(AA:AA),AA:AA,0)),0)))","v":""}]
[{"$f":"IF(C29=\"\",\"\",SUBTOTAL(3,$C$2:C29))","v":28},74,"عبدالله محمد 4","امبابة",2,{"$f":"IF(الجدول1[[#This Row],[المنطقة]]=التصاريح!$C$3,ROW()-1,\"\")","v":""},{"$f":"IFERROR(INDEX(الجدول1[الفرع],SMALL(الجدول1[عمود1],ROW()-1),1),\"\")","v":""},null,null,null,null,null,null,null,null,null,null,null,null,null,null,null,null,null,null,null,{"$f":"IF(COUNTIF(D$2:$D29,D29)=1, MAX(Z$1:$AA28)+1,\"\")","v":""},{"$f":"IF(ROWS($Z$2:AB29)>ROW(INDIRECT(ADDRESS(MAX(AA:AA),2))),\"\",INDEX(INDIRECT(\"$D$2\"&\":$D$\"&MATCH(MAX(AA:AA),AA:AA,0)),MATCH(ROWS(D$1:$D28),INDIRECT(\"$AA$2\"&\":$AA$\"&MATCH(MAX(AA:AA),AA:AA,0)),0)))","v":""}]
[{"$f":"IF(C30=\"\",\"\",SUBTOTAL(3,$C$2:C30))","v":29},77,"عثمان 1","الريان",1,{"$f":"IF(الجدول1[[#This Row],[المنطقة]]=التصاريح!$C$3,ROW()-1,\"\")","v":""},{"$f":"IFERROR(INDEX(الجدول1[الفرع],SMALL(الجدول1[عمود1],ROW()-1),1),\"\")","v":""},null,null,null,null,null,null,null,null,null,null,null,null,null,null,null,null,null,null,null,{"$f":"IF(COUNTIF(D$2:$D30,D30)=1, MAX(Z$1:$AA29)+1,\"\")","v":7},{"$f":"IF(ROWS($Z$2:AB30)>ROW(INDIRECT(ADDRESS(MAX(AA:AA),2))),\"\",INDEX(INDIRECT(\"$D$2\"&\":$D$\"&MATCH(MAX(AA:AA),AA:AA,0)),MATCH(ROWS(D$1:$D29),INDIRECT(\"$AA$2\"&\":$AA$\"&MATCH(MAX(AA:AA),AA:AA,0)),0)))","v":""}]
[{"$f":"IF(C31=\"\",\"\",SUBTOTAL(3,$C$2:C31))","v":30},78,"عثمان 2","الريان",1,{"$f":"IF(الجدول1[[#This Row],[المنطقة]]=التصاريح!$C$3,ROW()-1,\"\")","v":""},{"$f":"IFERROR(INDEX(الجدول1[الفرع],SMALL(الجدول1[عمود1],ROW()-1),1),\"\")","v":""},null,null,null,null,null,null,null,null,null,null,null,null,null,null,null,null,null,null,null,{"$f":"IF(COUNTIF(D$2:$D31,D31)=1, MAX(Z$1:$AA30)+1,\"\")","v":""},{"$f":"IF(ROWS($Z$2:AB31)>ROW(INDIRECT(ADDRESS(MAX(AA:AA),2))),\"\",INDEX(INDIRECT(\"$D$2\"&\":$D$\"&MATCH(MAX(AA:AA),AA:AA,0)),MATCH(ROWS(D$1:$D30),INDIRECT(\"$AA$2\"&\":$AA$\"&MATCH(MAX(AA:AA),AA:AA,0)),0)))","v":""}]
[{"$f":"IF(C32=\"\",\"\",SUBTOTAL(3,$C$2:C32))","v":31},79,"عثمان 3","الريان",1,{"$f":"IF(الجدول1[[#This Row],[المنطقة]]=التصاريح!$C$3,ROW()-1,\"\")","v":""},{"$f":"IFERROR(INDEX(الجدول1[الفرع],SMALL(الجدول1[عمود1],ROW()-1),1),\"\")","v":""},null,null,null,null,null,null,null,null,null,null,null,null,null,null,null,null,null,null,null,{"$f":"IF(COUNTIF(D$2:$D32,D32)=1, MAX(Z$1:$AA31)+1,\"\")","v":""},{"$f":"IF(ROWS($Z$2:AB32)>ROW(INDIRECT(ADDRESS(MAX(AA:AA),2))),\"\",INDEX(INDIRECT(\"$D$2\"&\":$D$\"&MATCH(MAX(AA:AA),AA:AA,0)),MATCH(ROWS(D$1:$D31),INDIRECT(\"$AA$2\"&\":$AA$\"&MATCH(MAX(AA:AA),AA:AA,0)),0)))","v":""}]
[{"$f":"IF(C33=\"\",\"\",SUBTOTAL(3,$C$2:C33))","v":32},80,"عثمان 4","الريان",1,{"$f":"IF(الجدول1[[#This Row],[المنطقة]]=التصاريح!$C$3,ROW()-1,\"\")","v":""},{"$f":"IFERROR(INDEX(الجدول1[الفرع],SMALL(الجدول1[عمود1],ROW()-1),1),\"\")","v":""},null,null,null,null,null,null,null,null,null,null,null,null,null,null,null,null,null,null,null,{"$f":"IF(COUNTIF(D$2:$D33,D33)=1, MAX(Z$1:$AA32)+1,\"\")","v":""},{"$f":"IF(ROWS($Z$2:AB33)>ROW(INDIRECT(ADDRESS(MAX(AA:AA),2))),\"\",INDEX(INDIRECT(\"$D$2\"&\":$D$\"&MATCH(MAX(AA:AA),AA:AA,0)),MATCH(ROWS(D$1:$D32),INDIRECT(\"$AA$2\"&\":$AA$\"&MATCH(MAX(AA:AA),AA:AA,0)),0)))","v":""}]
[{"$f":"IF(C34=\"\",\"\",SUBTOTAL(3,$C$2:C34))","v":33},81,"عثمان 5","الريان",4,{"$f":"IF(الجدول1[[#This Row],[المنطقة]]=التصاريح!$C$3,ROW()-1,\"\")","v":""},{"$f":"IFERROR(INDEX(الجدول1[الفرع],SMALL(الجدول1[عمود1],ROW()-1),1),\"\")","v":""},null,null,null,null,null,null,null,null,null,null,null,null,null,null,null,null,null,null,null,{"$f":"IF(COUNTIF(D$2:$D34,D34)=1, MAX(Z$1:$AA33)+1,\"\")","v":""},{"$f":"IF(ROWS($Z$2:AB34)>ROW(INDIRECT(ADDRESS(MAX(AA:AA),2))),\"\",INDEX(INDIRECT(\"$D$2\"&\":$D$\"&MATCH(MAX(AA:AA),AA:AA,0)),MATCH(ROWS(D$1:$D33),INDIRECT(\"$AA$2\"&\":$AA$\"&MATCH(MAX(AA:AA),AA:AA,0)),0)))","v":""}]
[{"$f":"IF(C35=\"\",\"\",SUBTOTAL(3,$C$2:C35))","v":34},85,"سالم أبو فدان 1","حدايق القبة",1,{"$f":"IF(الجدول1[[#This Row],[المنطقة]]=التصاريح!$C$3,ROW()-1,\"\")","v":""},{"$f":"IFERROR(INDEX(الجدول1[الفرع],SMALL(الجدول1[عمود1],ROW()-1),1),\"\")","v":""},null,null,null,null,null,null,null,null,null,null,null,null,null,null,null,null,null,null,null,{"$f":"IF(COUNTIF(D$2:$D35,D35)=1, MAX(Z$1:$AA34)+1,\"\")","v":8},{"$f":"IF(ROWS($Z$2:AB35)>ROW(INDIRECT(ADDRESS(MAX(AA:AA),2))),\"\",INDEX(INDIRECT(\"$D$2\"&\":$D$\"&MATCH(MAX(AA:AA),AA:AA,0)),MATCH(ROWS(D$1:$D34),INDIRECT(\"$AA$2\"&\":$AA$\"&MATCH(MAX(AA:AA),AA:AA,0)),0)))","v":""}]
[{"$f":"IF(C36=\"\",\"\",SUBTOTAL(3,$C$2:C36))","v":35},86,"سالم أبو فدان 2","حدايق القبة",1,{"$f":"IF(الجدول1[[#This Row],[المنطقة]]=التصاريح!$C$3,ROW()-1,\"\")","v":""},{"$f":"IFERROR(INDEX(الجدول1[الفرع],SMALL(الجدول1[عمود1],ROW()-1),1),\"\")","v":""},null,null,null,null,null,null,null,null,null,null,null,null,null,null,null,null,null,null,null,{"$f":"IF(COUNTIF(D$2:$D36,D36)=1, MAX(Z$1:$AA35)+1,\"\")","v":""},{"$f":"IF(ROWS($Z$2:AB36)>ROW(INDIRECT(ADDRESS(MAX(AA:AA),2))),\"\",INDEX(INDIRECT(\"$D$2\"&\":$D$\"&MATCH(MAX(AA:AA),AA:AA,0)),MATCH(ROWS(D$1:$D35),INDIRECT(\"$AA$2\"&\":$AA$\"&MATCH(MAX(AA:AA),AA:AA,0)),0)))","v":""}]
[{"$f":"IF(C37=\"\",\"\",SUBTOTAL(3,$C$2:C37))","v":36},87,"سالم أبو فدان3","حدايق القبة",10,{"$f":"IF(الجدول1[[#This Row],[المنطقة]]=التصاريح!$C$3,ROW()-1,\"\")","v":""},{"$f":"IFERROR(INDEX(الجدول1[الفرع],SMALL(الجدول1[عمود1],ROW()-1),1),\"\")","v":""},null,null,null,null,null,null,null,null,null,null,null,null,null,null,null,null,null,null,null,{"$f":"IF(COUNTIF(D$2:$D37,D37)=1, MAX(Z$1:$AA36)+1,\"\")","v":""},{"$f":"IF(ROWS($Z$2:AB37)>ROW(INDIRECT(ADDRESS(MAX(AA:AA),2))),\"\",INDEX(INDIRECT(\"$D$2\"&\":$D$\"&MATCH(MAX(AA:AA),AA:AA,0)),MATCH(ROWS(D$1:$D36),INDIRECT(\"$AA$2\"&\":$AA$\"&MATCH(MAX(AA:AA),AA:AA,0)),0)))","v":""}]
[{"$f":"IF(C38=\"\",\"\",SUBTOTAL(3,$C$2:C38))","v":37},88,"سالم أبو فدان4","حدايق القبة",10,{"$f":"IF(الجدول1[[#This Row],[المنطقة]]=التصاريح!$C$3,ROW()-1,\"\")","v":""},{"$f":"IFERROR(INDEX(الجدول1[الفرع],SMALL(الجدول1[عمود1],ROW()-1),1),\"\")","v":""},null,null,null,null,null,null,null,null,null,null,null,null,null,null,null,null,null,null,null,{"$f":"IF(COUNTIF(D$2:$D38,D38)=1, MAX(Z$1:$AA37)+1,\"\")","v":""},{"$f":"IF(ROWS($Z$2:AB38)>ROW(INDIRECT(ADDRESS(MAX(AA:AA),2))),\"\",INDEX(INDIRECT(\"$D$2\"&\":$D$\"&MATCH(MAX(AA:AA),AA:AA,0)),MATCH(ROWS(D$1:$D37),INDIRECT(\"$AA$2\"&\":$AA$\"&MATCH(MAX(AA:AA),AA:AA,0)),0)))","v":""}]
[{"$f":"IF(C39=\"\",\"\",SUBTOTAL(3,$C$2:C39))","v":38},89,"سالم أبو فدان5","حدايق القبة",11,{"$f":"IF(الجدول1[[#This Row],[المنطقة]]=التصاريح!$C$3,ROW()-1,\"\")","v":""},{"$f":"IFERROR(INDEX(الجدول1[الفرع],SMALL(الجدول1[عمود1],ROW()-1),1),\"\")","v":""},null,null,null,null,null,null,null,null,null,null,null,null,null,null,null,null,null,null,null,{"$f":"IF(COUNTIF(D$2:$D39,D39)=1, MAX(Z$1:$AA38)+1,\"\")","v":""},{"$f":"IF(ROWS($Z$2:AB39)>ROW(INDIRECT(ADDRESS(MAX(AA:AA),2))),\"\",INDEX(INDIRECT(\"$D$2\"&\":$D$\"&MATCH(MAX(AA:AA),AA:AA,0)),MATCH(ROWS(D$1:$D38),INDIRECT(\"$AA$2\"&\":$AA$\"&MATCH(MAX(AA:AA),AA:AA,0)),0)))","v":""}]
[{"$f":"IF(C40=\"\",\"\",SUBTOTAL(3,$C$2:C40))","v":39},90,"سالم أبو فدان6","حدايق القبة",11,{"$f":"IF(الجدول1[[#This Row],[المنطقة]]=التصاريح!$C$3,ROW()-1,\"\")","v":""},{"$f":"IFERROR(INDEX(الجدول1[الفرع],SMALL(الجدول1[عمود1],ROW()-1),1),\"\")","v":""},null,null,null,null,null,null,null,null,null,null,null,null,null,null,null,null,null,null,null,{"$f":"IF(COUNTIF(D$2:$D42,D40)=1, MAX(Z$1:$AA39)+1,\"\")","v":""},{"$f":"IF(ROWS($Z$2:AB40)>ROW(INDIRECT(ADDRESS(MAX(AA:AA),2))),\"\",INDEX(INDIRECT(\"$D$2\"&\":$D$\"&MATCH(MAX(AA:AA),AA:AA,0)),MATCH(ROWS(D$1:$D39),INDIRECT(\"$AA$2\"&\":$AA$\"&MATCH(MAX(AA:AA),AA:AA,0)),0)))","v":""}]
[{"$f":"IF(C41=\"\",\"\",SUBTOTAL(3,$C$2:C42))","v":40},91,"سالم أبو فدان7","حدايق القبة",12,{"$f":"IF(الجدول1[[#This Row],[المنطقة]]=التصاريح!$C$3,ROW()-1,\"\")","v":""},{"$f":"IFERROR(INDEX(الجدول1[الفرع],SMALL(الجدول1[عمود1],ROW()-1),1),\"\")","v":""},null,null,null,null,null,null,null,null,null,null,null,null,null,null,null,null,null,null,null,{"$f":"IF(COUNTIF(D$2:$D42,D41)=1, MAX(Z$1:$AA40)+1,\"\")","v":""},{"$f":"IF(ROWS($Z$2:AB41)>ROW(INDIRECT(ADDRESS(MAX(AA:AA),2))),\"\",INDEX(INDIRECT(\"$D$2\"&\":$D$\"&MATCH(MAX(AA:AA),AA:AA,0)),MATCH(ROWS(D$1:$D42),INDIRECT(\"$AA$2\"&\":$AA$\"&MATCH(MAX(AA:AA),AA:AA,0)),0)))","v":""}]
[{"$f":"IF(C42=\"\",\"\",SUBTOTAL(3,$C$2:C42))","v":""},null,null,null,null,{"$f":"IF(الجدول1[[#This Row],[المنطقة]]=التصاريح!$C$3,ROW()-1,\"\")","v":""},{"$f":"IFERROR(INDEX(الجدول1[الفرع],SMALL(الجدول1[عمود1],ROW()-1),1),\"\")","v":""},null,null,null,null,null,null,null,null,null,null,null,null,null,null,null,null,null,null,null,{"$f":"IF(COUNTIF(D$2:$D42,D42)=1, MAX(Z$1:$AA41)+1,\"\")","v":""},{"$f":"IF(ROWS($Z$2:AB42)>ROW(INDIRECT(ADDRESS(MAX(AA:AA),2))),\"\",INDEX(INDIRECT(\"$D$2\"&\":$D$\"&MATCH(MAX(AA:AA),AA:AA,0)),MATCH(ROWS(D$1:$D42),INDIRECT(\"$AA$2\"&\":$AA$\"&MATCH(MAX(AA:AA),AA:AA,0)),0)))","v":""}]
[null,null,null,null,null,null,null,null,null,null,null,null,null,null,null,null,null,null,null,null,null,null,null,null,null,null,{"$f":"IF(COUNTIF(D$2:$D43,D43)=1, MAX(Z$1:$AA42)+1,\"\")","v":""},{"$f":"IF(ROWS($Z$2:AB43)>ROW(INDIRECT(ADDRESS(MAX(AA:AA),2))),\"\",INDEX(INDIRECT(\"$D$2\"&\":$D$\"&MATCH(MAX(AA:AA),AA:AA,0)),MATCH(ROWS(D$1:$D42),INDIRECT(\"$AA$2\"&\":$AA$\"&MATCH(MAX(AA:AA),AA:AA,0)),0)))","v":""}]
[null,null,null,null,null,null,null,null,null,null,null,null,null,null,null,null,null,null,null,null,null,null,null,null,null,null,{"$f":"IF(COUNTIF(D$2:$D44,D44)=1, MAX(Z$1:$AA43)+1,\"\")","v":""},{"$f":"IF(ROWS($Z$2:AB44)>ROW(INDIRECT(ADDRESS(MAX(AA:AA),2))),\"\",INDEX(INDIRECT(\"$D$2\"&\":$D$\"&MATCH(MAX(AA:AA),AA:AA,0)),MATCH(ROWS(D$1:$D43),INDIRECT(\"$AA$2\"&\":$AA$\"&MATCH(MAX(AA:AA),AA:AA,0)),0)))","v":""}]
[null,null,null,null,null,null,null,null,null,null,null,null,null,null,null,null,null,null,null,null,null,null,null,null,null,null,{"$f":"IF(COUNTIF(D$2:$D45,D45)=1, MAX(Z$1:$AA44)+1,\"\")","v":""},{"$f":"IF(ROWS($Z$2:AB45)>ROW(INDIRECT(ADDRESS(MAX(AA:AA),2))),\"\",INDEX(INDIRECT(\"$D$2\"&\":$D$\"&MATCH(MAX(AA:AA),AA:AA,0)),MATCH(ROWS(D$1:$D44),INDIRECT(\"$AA$2\"&\":$AA$\"&MATCH(MAX(AA:AA),AA:AA,0)),0)))","v":""}]
[null,null,null,null,null,null,null,null,null,null,null,null,null,null,null,null,null,null,null,null,null,null,null,null,null,null,{"$f":"IF(COUNTIF(D$2:$D46,D46)=1, MAX(Z$1:$AA45)+1,\"\")","v":""},{"$f":"IF(ROWS($Z$2:AB46)>ROW(INDIRECT(ADDRESS(MAX(AA:AA),2))),\"\",INDEX(INDIRECT(\"$D$2\"&\":$D$\"&MATCH(MAX(AA:AA),AA:AA,0)),MATCH(ROWS(D$1:$D45),INDIRECT(\"$AA$2\"&\":$AA$\"&MATCH(MAX(AA:AA),AA:AA,0)),0)))","v":""}]
[null,null,null,null,null,null,null,null,null,null,null,null,null,null,null,null,null,null,null,null,null,null,null,null,null,null,{"$f":"IF(COUNTIF(D$2:$D47,D47)=1, MAX(Z$1:$AA46)+1,\"\")","v":""},{"$f":"IF(ROWS($Z$2:AB47)>ROW(INDIRECT(ADDRESS(MAX(AA:AA),2))),\"\",INDEX(INDIRECT(\"$D$2\"&\":$D$\"&MATCH(MAX(AA:AA),AA:AA,0)),MATCH(ROWS(D$1:$D46),INDIRECT(\"$AA$2\"&\":$AA$\"&MATCH(MAX(AA:AA),AA:AA,0)),0)))","v":""}]
[null,null,null,null,null,null,null,null,null,null,null,null,null,null,null,null,null,null,null,null,null,null,null,null,null,null,{"$f":"IF(COUNTIF(D$2:$D48,D48)=1, MAX(Z$1:$AA47)+1,\"\")","v":""},{"$f":"IF(ROWS($Z$2:AB48)>ROW(INDIRECT(ADDRESS(MAX(AA:AA),2))),\"\",INDEX(INDIRECT(\"$D$2\"&\":$D$\"&MATCH(MAX(AA:AA),AA:AA,0)),MATCH(ROWS(D$1:$D47),INDIRECT(\"$AA$2\"&\":$AA$\"&MATCH(MAX(AA:AA),AA:AA,0)),0)))","v":""}]
[null,null,null,null,null,null,null,null,null,null,null,null,null,null,null,null,null,null,null,null,null,null,null,null,null,null,{"$f":"IF(COUNTIF(D$2:$D49,D49)=1, MAX(Z$1:$AA48)+1,\"\")","v":""},{"$f":"IF(ROWS($Z$2:AB49)>ROW(INDIRECT(ADDRESS(MAX(AA:AA),2))),\"\",INDEX(INDIRECT(\"$D$2\"&\":$D$\"&MATCH(MAX(AA:AA),AA:AA,0)),MATCH(ROWS(D$1:$D48),INDIRECT(\"$AA$2\"&\":$AA$\"&MATCH(MAX(AA:AA),AA:AA,0)),0)))","v":""}]
[null,null,null,null,null,null,null,null,null,null,null,null,null,null,null,null,null,null,null,null,null,null,null,null,null,null,{"$f":"IF(COUNTIF(D$2:$D50,D50)=1, MAX(Z$1:$AA49)+1,\"\")","v":""},{"$f":"IF(ROWS($Z$2:AB50)>ROW(INDIRECT(ADDRESS(MAX(AA:AA),2))),\"\",INDEX(INDIRECT(\"$D$2\"&\":$D$\"&MATCH(MAX(AA:AA),AA:AA,0)),MATCH(ROWS(D$1:$D49),INDIRECT(\"$AA$2\"&\":$AA$\"&MATCH(MAX(AA:AA),AA:AA,0)),0)))","v":""}]
[null,null,null,null,null,null,null,null,null,null,null,null,null,null,null,null,null,null,null,null,null,null,null,null,null,null,{"$f":"IF(COUNTIF(D$2:$D51,D51)=1, MAX(Z$1:$AA50)+1,\"\")","v":""},{"$f":"IF(ROWS($Z$2:AB51)>ROW(INDIRECT(ADDRESS(MAX(AA:AA),2))),\"\",INDEX(INDIRECT(\"$D$2\"&\":$D$\"&MATCH(MAX(AA:AA),AA:AA,0)),MATCH(ROWS(D$1:$D50),INDIRECT(\"$AA$2\"&\":$AA$\"&MATCH(MAX(AA:AA),AA:AA,0)),0)))","v":""}]
[null,null,null,null,null,null,null,null,null,null,null,null,null,null,null,null,null,null,null,null,null,null,null,null,null,null,{"$f":"IF(COUNTIF(D$2:$D52,D52)=1, MAX(Z$1:$AA51)+1,\"\")","v":""},{"$f":"IF(ROWS($Z$2:AB52)>ROW(INDIRECT(ADDRESS(MAX(AA:AA),2))),\"\",INDEX(INDIRECT(\"$D$2\"&\":$D$\"&MATCH(MAX(AA:AA),AA:AA,0)),MATCH(ROWS(D$1:$D51),INDIRECT(\"$AA$2\"&\":$AA$\"&MATCH(MAX(AA:AA),AA:AA,0)),0)))","v":""}]
[null,null,null,null,null,null,null,null,null,null,null,null,null,null,null,null,null,null,null,null,null,null,null,null,null,null,{"$f":"IF(COUNTIF(D$2:$D53,D53)=1, MAX(Z$1:$AA52)+1,\"\")","v":""},{"$f":"IF(ROWS($Z$2:AB53)>ROW(INDIRECT(ADDRESS(MAX(AA:AA),2))),\"\",INDEX(INDIRECT(\"$D$2\"&\":$D$\"&MATCH(MAX(AA:AA),AA:AA,0)),MATCH(ROWS(D$1:$D52),INDIRECT(\"$AA$2\"&\":$AA$\"&MATCH(MAX(AA:AA),AA:AA,0)),0)))","v":""}]
[null,null,null,null,null,null,null,null,null,null,null,null,null,null,null,null,null,null,null,null,null,null,null,null,null,null,{"$f":"IF(COUNTIF(D$2:$D54,D54)=1, MAX(Z$1:$AA53)+1,\"\")","v":""},{"$f":"IF(ROWS($Z$2:AB54)>ROW(INDIRECT(ADDRESS(MAX(AA:AA),2))),\"\",INDEX(INDIRECT(\"$D$2\"&\":$D$\"&MATCH(MAX(AA:AA),AA:AA,0)),MATCH(ROWS(D$1:$D53),INDIRECT(\"$AA$2\"&\":$AA$\"&MATCH(MAX(AA:AA),AA:AA,0)),0)))","v":""}]
[null,null,null,null,null,null,null,null,null,null,null,null,null,null,null,null,null,null,null,null,null,null,null,null,null,null,{"$f":"IF(COUNTIF(D$2:$D55,D55)=1, MAX(Z$1:$AA54)+1,\"\")","v":""},{"$f":"IF(ROWS($Z$2:AB55)>ROW(INDIRECT(ADDRESS(MAX(AA:AA),2))),\"\",INDEX(INDIRECT(\"$D$2\"&\":$D$\"&MATCH(MAX(AA:AA),AA:AA,0)),MATCH(ROWS(D$1:$D54),INDIRECT(\"$AA$2\"&\":$AA$\"&MATCH(MAX(AA:AA),AA:AA,0)),0)))","v":""}]
[null,null,null,null,null,null,null,null,null,null,null,null,null,null,null,null,null,null,null,null,null,null,null,null,null,null,{"$f":"IF(COUNTIF(D$2:$D56,D56)=1, MAX(Z$1:$AA55)+1,\"\")","v":""},{"$f":"IF(ROWS($Z$2:AB56)>ROW(INDIRECT(ADDRESS(MAX(AA:AA),2))),\"\",INDEX(INDIRECT(\"$D$2\"&\":$D$\"&MATCH(MAX(AA:AA),AA:AA,0)),MATCH(ROWS(D$1:$D55),INDIRECT(\"$AA$2\"&\":$AA$\"&MATCH(MAX(AA:AA),AA:AA,0)),0)))","v":""}]
[null,null,null,null,null,null,null,null,null,null,null,null,null,null,null,null,null,null,null,null,null,null,null,null,null,null,{"$f":"IF(COUNTIF(D$2:$D57,D57)=1, MAX(Z$1:$AA56)+1,\"\")","v":""},{"$f":"IF(ROWS($Z$2:AB57)>ROW(INDIRECT(ADDRESS(MAX(AA:AA),2))),\"\",INDEX(INDIRECT(\"$D$2\"&\":$D$\"&MATCH(MAX(AA:AA),AA:AA,0)),MATCH(ROWS(D$1:$D56),INDIRECT(\"$AA$2\"&\":$AA$\"&MATCH(MAX(AA:AA),AA:AA,0)),0)))","v":""}]
[null,null,null,null,null,null,null,null,null,null,null,null,null,null,null,null,null,null,null,null,null,null,null,null,null,null,{"$f":"IF(COUNTIF(D$2:$D58,D58)=1, MAX(Z$1:$AA57)+1,\"\")","v":""},{"$f":"IF(ROWS($Z$2:AB58)>ROW(INDIRECT(ADDRESS(MAX(AA:AA),2))),\"\",INDEX(INDIRECT(\"$D$2\"&\":$D$\"&MATCH(MAX(AA:AA),AA:AA,0)),MATCH(ROWS(D$1:$D57),INDIRECT(\"$AA$2\"&\":$AA$\"&MATCH(MAX(AA:AA),AA:AA,0)),0)))","v":""}]
[null,null,null,null,null,null,null,null,null,null,null,null,null,null,null,null,null,null,null,null,null,null,null,null,null,null,{"$f":"IF(COUNTIF(D$2:$D59,D59)=1, MAX(Z$1:$AA58)+1,\"\")","v":""},{"$f":"IF(ROWS($Z$2:AB59)>ROW(INDIRECT(ADDRESS(MAX(AA:AA),2))),\"\",INDEX(INDIRECT(\"$D$2\"&\":$D$\"&MATCH(MAX(AA:AA),AA:AA,0)),MATCH(ROWS(D$1:$D58),INDIRECT(\"$AA$2\"&\":$AA$\"&MATCH(MAX(AA:AA),AA:AA,0)),0)))","v":""}]
[null,null,null,null,null,null,null,null,null,null,null,null,null,null,null,null,null,null,null,null,null,null,null,null,null,null,{"$f":"IF(COUNTIF(D$2:$D60,D60)=1, MAX(Z$1:$AA59)+1,\"\")","v":""},{"$f":"IF(ROWS($Z$2:AB60)>ROW(INDIRECT(ADDRESS(MAX(AA:AA),2))),\"\",INDEX(INDIRECT(\"$D$2\"&\":$D$\"&MATCH(MAX(AA:AA),AA:AA,0)),MATCH(ROWS(D$1:$D59),INDIRECT(\"$AA$2\"&\":$AA$\"&MATCH(MAX(AA:AA),AA:AA,0)),0)))","v":""}]
[null,null,null,null,null,null,null,null,null,null,null,null,null,null,null,null,null,null,null,null,null,null,null,null,null,null,{"$f":"IF(COUNTIF(D$2:$D61,D61)=1, MAX(Z$1:$AA60)+1,\"\")","v":""},{"$f":"IF(ROWS($Z$2:AB61)>ROW(INDIRECT(ADDRESS(MAX(AA:AA),2))),\"\",INDEX(INDIRECT(\"$D$2\"&\":$D$\"&MATCH(MAX(AA:AA),AA:AA,0)),MATCH(ROWS(D$1:$D60),INDIRECT(\"$AA$2\"&\":$AA$\"&MATCH(MAX(AA:AA),AA:AA,0)),0)))","v":""}]
[null,null,null,null,null,null,null,null,null,null,null,null,null,null,null,null,null,null,null,null,null,null,null,null,null,null,{"$f":"IF(COUNTIF(D$2:$D62,D62)=1, MAX(Z$1:$AA61)+1,\"\")","v":""},{"$f":"IF(ROWS($Z$2:AB62)>ROW(INDIRECT(ADDRESS(MAX(AA:AA),2))),\"\",INDEX(INDIRECT(\"$D$2\"&\":$D$\"&MATCH(MAX(AA:AA),AA:AA,0)),MATCH(ROWS(D$1:$D61),INDIRECT(\"$AA$2\"&\":$AA$\"&MATCH(MAX(AA:AA),AA:AA,0)),0)))","v":""}]
[null,null,null,null,null,null,null,null,null,null,null,null,null,null,null,null,null,null,null,null,null,null,null,null,null,null,{"$f":"IF(COUNTIF(D$2:$D63,D63)=1, MAX(Z$1:$AA62)+1,\"\")","v":""},{"$f":"IF(ROWS($Z$2:AB63)>ROW(INDIRECT(ADDRESS(MAX(AA:AA),2))),\"\",INDEX(INDIRECT(\"$D$2\"&\":$D$\"&MATCH(MAX(AA:AA),AA:AA,0)),MATCH(ROWS(D$1:$D62),INDIRECT(\"$AA$2\"&\":$AA$\"&MATCH(MAX(AA:AA),AA:AA,0)),0)))","v":""}]
[null,null,null,null,null,null,null,null,null,null,null,null,null,null,null,null,null,null,null,null,null,null,null,null,null,null,{"$f":"IF(COUNTIF(D$2:$D64,D64)=1, MAX(Z$1:$AA63)+1,\"\")","v":""},{"$f":"IF(ROWS($Z$2:AB64)>ROW(INDIRECT(ADDRESS(MAX(AA:AA),2))),\"\",INDEX(INDIRECT(\"$D$2\"&\":$D$\"&MATCH(MAX(AA:AA),AA:AA,0)),MATCH(ROWS(D$1:$D63),INDIRECT(\"$AA$2\"&\":$AA$\"&MATCH(MAX(AA:AA),AA:AA,0)),0)))","v":""}]
[null,null,null,null,null,null,null,null,null,null,null,null,null,null,null,null,null,null,null,null,null,null,null,null,null,null,{"$f":"IF(COUNTIF(D$2:$D65,D65)=1, MAX(Z$1:$AA64)+1,\"\")","v":""},{"$f":"IF(ROWS($Z$2:AB65)>ROW(INDIRECT(ADDRESS(MAX(AA:AA),2))),\"\",INDEX(INDIRECT(\"$D$2\"&\":$D$\"&MATCH(MAX(AA:AA),AA:AA,0)),MATCH(ROWS(D$1:$D64),INDIRECT(\"$AA$2\"&\":$AA$\"&MATCH(MAX(AA:AA),AA:AA,0)),0)))","v":""}]
[null,null,null,null,null,null,null,null,null,null,null,null,null,null,null,null,null,null,null,null,null,null,null,null,null,null,{"$f":"IF(COUNTIF(D$2:$D66,D66)=1, MAX(Z$1:$AA65)+1,\"\")","v":""},{"$f":"IF(ROWS($Z$2:AB66)>ROW(INDIRECT(ADDRESS(MAX(AA:AA),2))),\"\",INDEX(INDIRECT(\"$D$2\"&\":$D$\"&MATCH(MAX(AA:AA),AA:AA,0)),MATCH(ROWS(D$1:$D65),INDIRECT(\"$AA$2\"&\":$AA$\"&MATCH(MAX(AA:AA),AA:AA,0)),0)))","v":""}]
[null,null,null,null,null,null,null,null,null,null,null,null,null,null,null,null,null,null,null,null,null,null,null,null,null,null,{"$f":"IF(COUNTIF(D$2:$D67,D67)=1, MAX(Z$1:$AA66)+1,\"\")","v":""},{"$f":"IF(ROWS($Z$2:AB67)>ROW(INDIRECT(ADDRESS(MAX(AA:AA),2))),\"\",INDEX(INDIRECT(\"$D$2\"&\":$D$\"&MATCH(MAX(AA:AA),AA:AA,0)),MATCH(ROWS(D$1:$D66),INDIRECT(\"$AA$2\"&\":$AA$\"&MATCH(MAX(AA:AA),AA:AA,0)),0)))","v":""}]
[null,null,null,null,null,null,null,null,null,null,null,null,null,null,null,null,null,null,null,null,null,null,null,null,null,null,{"$f":"IF(COUNTIF(D$2:$D68,D68)=1, MAX(Z$1:$AA67)+1,\"\")","v":""},{"$f":"IF(ROWS($Z$2:AB68)>ROW(INDIRECT(ADDRESS(MAX(AA:AA),2))),\"\",INDEX(INDIRECT(\"$D$2\"&\":$D$\"&MATCH(MAX(AA:AA),AA:AA,0)),MATCH(ROWS(D$1:$D67),INDIRECT(\"$AA$2\"&\":$AA$\"&MATCH(MAX(AA:AA),AA:AA,0)),0)))","v":""}]
[null,null,null,null,null,null,null,null,null,null,null,null,null,null,null,null,null,null,null,null,null,null,null,null,null,null,{"$f":"IF(COUNTIF(D$2:$D69,D69)=1, MAX(Z$1:$AA68)+1,\"\")","v":""},{"$f":"IF(ROWS($Z$2:AB69)>ROW(INDIRECT(ADDRESS(MAX(AA:AA),2))),\"\",INDEX(INDIRECT(\"$D$2\"&\":$D$\"&MATCH(MAX(AA:AA),AA:AA,0)),MATCH(ROWS(D$1:$D68),INDIRECT(\"$AA$2\"&\":$AA$\"&MATCH(MAX(AA:AA),AA:AA,0)),0)))","v":""}]
[null,null,null,null,null,null,null,null,null,null,null,null,null,null,null,null,null,null,null,null,null,null,null,null,null,null,{"$f":"IF(COUNTIF(D$2:$D70,D70)=1, MAX(Z$1:$AA69)+1,\"\")","v":""},{"$f":"IF(ROWS($Z$2:AB70)>ROW(INDIRECT(ADDRESS(MAX(AA:AA),2))),\"\",INDEX(INDIRECT(\"$D$2\"&\":$D$\"&MATCH(MAX(AA:AA),AA:AA,0)),MATCH(ROWS(D$1:$D69),INDIRECT(\"$AA$2\"&\":$AA$\"&MATCH(MAX(AA:AA),AA:AA,0)),0)))","v":""}]
[null,null,null,null,null,null,null,null,null,null,null,null,null,null,null,null,null,null,null,null,null,null,null,null,null,null,{"$f":"IF(COUNTIF(D$2:$D71,D71)=1, MAX(Z$1:$AA70)+1,\"\")","v":""},{"$f":"IF(ROWS($Z$2:AB71)>ROW(INDIRECT(ADDRESS(MAX(AA:AA),2))),\"\",INDEX(INDIRECT(\"$D$2\"&\":$D$\"&MATCH(MAX(AA:AA),AA:AA,0)),MATCH(ROWS(D$1:$D70),INDIRECT(\"$AA$2\"&\":$AA$\"&MATCH(MAX(AA:AA),AA:AA,0)),0)))","v":""}]
[null,null,null,null,null,null,null,null,null,null,null,null,null,null,null,null,null,null,null,null,null,null,null,null,null,null,{"$f":"IF(COUNTIF(D$2:$D72,D72)=1, MAX(Z$1:$AA71)+1,\"\")","v":""},{"$f":"IF(ROWS($Z$2:AB72)>ROW(INDIRECT(ADDRESS(MAX(AA:AA),2))),\"\",INDEX(INDIRECT(\"$D$2\"&\":$D$\"&MATCH(MAX(AA:AA),AA:AA,0)),MATCH(ROWS(D$1:$D71),INDIRECT(\"$AA$2\"&\":$AA$\"&MATCH(MAX(AA:AA),AA:AA,0)),0)))","v":""}]
[null,null,null,null,null,null,null,null,null,null,null,null,null,null,null,null,null,null,null,null,null,null,null,null,null,null,{"$f":"IF(COUNTIF(D$2:$D73,D73)=1, MAX(Z$1:$AA72)+1,\"\")","v":""},{"$f":"IF(ROWS($Z$2:AB73)>ROW(INDIRECT(ADDRESS(MAX(AA:AA),2))),\"\",INDEX(INDIRECT(\"$D$2\"&\":$D$\"&MATCH(MAX(AA:AA),AA:AA,0)),MATCH(ROWS(D$1:$D72),INDIRECT(\"$AA$2\"&\":$AA$\"&MATCH(MAX(AA:AA),AA:AA,0)),0)))","v":""}]
[null,null,null,null,null,null,null,null,null,null,null,null,null,null,null,null,null,null,null,null,null,null,null,null,null,null,{"$f":"IF(COUNTIF(D$2:$D74,D74)=1, MAX(Z$1:$AA73)+1,\"\")","v":""},{"$f":"IF(ROWS($Z$2:AB74)>ROW(INDIRECT(ADDRESS(MAX(AA:AA),2))),\"\",INDEX(INDIRECT(\"$D$2\"&\":$D$\"&MATCH(MAX(AA:AA),AA:AA,0)),MATCH(ROWS(D$1:$D73),INDIRECT(\"$AA$2\"&\":$AA$\"&MATCH(MAX(AA:AA),AA:AA,0)),0)))","v":""}]
[null,null,null,null,null,null,null,null,null,null,null,null,null,null,null,null,null,null,null,null,null,null,null,null,null,null,{"$f":"IF(COUNTIF(D$2:$D75,D75)=1, MAX(Z$1:$AA74)+1,\"\")","v":""},{"$f":"IF(ROWS($Z$2:AB75)>ROW(INDIRECT(ADDRESS(MAX(AA:AA),2))),\"\",INDEX(INDIRECT(\"$D$2\"&\":$D$\"&MATCH(MAX(AA:AA),AA:AA,0)),MATCH(ROWS(D$1:$D74),INDIRECT(\"$AA$2\"&\":$AA$\"&MATCH(MAX(AA:AA),AA:AA,0)),0)))","v":""}]
[null,null,null,null,null,null,null,null,null,null,null,null,null,null,null,null,null,null,null,null,null,null,null,null,null,null,{"$f":"IF(COUNTIF(D$2:$D76,D76)=1, MAX(Z$1:$AA75)+1,\"\")","v":""},{"$f":"IF(ROWS($Z$2:AB76)>ROW(INDIRECT(ADDRESS(MAX(AA:AA),2))),\"\",INDEX(INDIRECT(\"$D$2\"&\":$D$\"&MATCH(MAX(AA:AA),AA:AA,0)),MATCH(ROWS(D$1:$D75),INDIRECT(\"$AA$2\"&\":$AA$\"&MATCH(MAX(AA:AA),AA:AA,0)),0)))","v":""}]
[null,null,null,null,null,null,null,null,null,null,null,null,null,null,null,null,null,null,null,null,null,null,null,null,null,null,{"$f":"IF(COUNTIF(D$2:$D77,D77)=1, MAX(Z$1:$AA76)+1,\"\")","v":""},{"$f":"IF(ROWS($Z$2:AB77)>ROW(INDIRECT(ADDRESS(MAX(AA:AA),2))),\"\",INDEX(INDIRECT(\"$D$2\"&\":$D$\"&MATCH(MAX(AA:AA),AA:AA,0)),MATCH(ROWS(D$1:$D76),INDIRECT(\"$AA$2\"&\":$AA$\"&MATCH(MAX(AA:AA),AA:AA,0)),0)))","v":""}]
[null,null,null,null,null,null,null,null,null,null,null,null,null,null,null,null,null,null,null,null,null,null,null,null,null,null,{"$f":"IF(COUNTIF(D$2:$D78,D78)=1, MAX(Z$1:$AA77)+1,\"\")","v":""},{"$f":"IF(ROWS($Z$2:AB78)>ROW(INDIRECT(ADDRESS(MAX(AA:AA),2))),\"\",INDEX(INDIRECT(\"$D$2\"&\":$D$\"&MATCH(MAX(AA:AA),AA:AA,0)),MATCH(ROWS(D$1:$D77),INDIRECT(\"$AA$2\"&\":$AA$\"&MATCH(MAX(AA:AA),AA:AA,0)),0)))","v":""}]
[null,null,null,null,null,null,null,null,null,null,null,null,null,null,null,null,null,null,null,null,null,null,null,null,null,null,{"$f":"IF(COUNTIF(D$2:$D79,D79)=1, MAX(Z$1:$AA78)+1,\"\")","v":""},{"$f":"IF(ROWS($Z$2:AB79)>ROW(INDIRECT(ADDRESS(MAX(AA:AA),2))),\"\",INDEX(INDIRECT(\"$D$2\"&\":$D$\"&MATCH(MAX(AA:AA),AA:AA,0)),MATCH(ROWS(D$1:$D78),INDIRECT(\"$AA$2\"&\":$AA$\"&MATCH(MAX(AA:AA),AA:AA,0)),0)))","v":""}]
[null,null,null,null,null,null,null,null,null,null,null,null,null,null,null,null,null,null,null,null,null,null,null,null,null,null,{"$f":"IF(COUNTIF(D$2:$D80,D80)=1, MAX(Z$1:$AA79)+1,\"\")","v":""},{"$f":"IF(ROWS($Z$2:AB80)>ROW(INDIRECT(ADDRESS(MAX(AA:AA),2))),\"\",INDEX(INDIRECT(\"$D$2\"&\":$D$\"&MATCH(MAX(AA:AA),AA:AA,0)),MATCH(ROWS(D$1:$D79),INDIRECT(\"$AA$2\"&\":$AA$\"&MATCH(MAX(AA:AA),AA:AA,0)),0)))","v":""}]
[null,null,null,null,null,null,null,null,null,null,null,null,null,null,null,null,null,null,null,null,null,null,null,null,null,null,{"$f":"IF(COUNTIF(D$2:$D81,D81)=1, MAX(Z$1:$AA80)+1,\"\")","v":""},{"$f":"IF(ROWS($Z$2:AB81)>ROW(INDIRECT(ADDRESS(MAX(AA:AA),2))),\"\",INDEX(INDIRECT(\"$D$2\"&\":$D$\"&MATCH(MAX(AA:AA),AA:AA,0)),MATCH(ROWS(D$1:$D80),INDIRECT(\"$AA$2\"&\":$AA$\"&MATCH(MAX(AA:AA),AA:AA,0)),0)))","v":""}]
[null,null,null,null,null,null,null,null,null,null,null,null,null,null,null,null,null,null,null,null,null,null,null,null,null,null,{"$f":"IF(COUNTIF(D$2:$D82,D82)=1, MAX(Z$1:$AA81)+1,\"\")","v":""},{"$f":"IF(ROWS($Z$2:AB82)>ROW(INDIRECT(ADDRESS(MAX(AA:AA),2))),\"\",INDEX(INDIRECT(\"$D$2\"&\":$D$\"&MATCH(MAX(AA:AA),AA:AA,0)),MATCH(ROWS(D$1:$D81),INDIRECT(\"$AA$2\"&\":$AA$\"&MATCH(MAX(AA:AA),AA:AA,0)),0)))","v":""}]
[null,null,null,null,null,null,null,null,null,null,null,null,null,null,null,null,null,null,null,null,null,null,null,null,null,null,{"$f":"IF(COUNTIF(D$2:$D83,D83)=1, MAX(Z$1:$AA82)+1,\"\")","v":""},{"$f":"IF(ROWS($Z$2:AB83)>ROW(INDIRECT(ADDRESS(MAX(AA:AA),2))),\"\",INDEX(INDIRECT(\"$D$2\"&\":$D$\"&MATCH(MAX(AA:AA),AA:AA,0)),MATCH(ROWS(D$1:$D82),INDIRECT(\"$AA$2\"&\":$AA$\"&MATCH(MAX(AA:AA),AA:AA,0)),0)))","v":""}]
[null,null,null,null,null,null,null,null,null,null,null,null,null,null,null,null,null,null,null,null,null,null,null,null,null,null,{"$f":"IF(COUNTIF(D$2:$D84,D84)=1, MAX(Z$1:$AA83)+1,\"\")","v":""},{"$f":"IF(ROWS($Z$2:AB84)>ROW(INDIRECT(ADDRESS(MAX(AA:AA),2))),\"\",INDEX(INDIRECT(\"$D$2\"&\":$D$\"&MATCH(MAX(AA:AA),AA:AA,0)),MATCH(ROWS(D$1:$D83),INDIRECT(\"$AA$2\"&\":$AA$\"&MATCH(MAX(AA:AA),AA:AA,0)),0)))","v":""}]
[null,null,null,null,null,null,null,null,null,null,null,null,null,null,null,null,null,null,null,null,null,null,null,null,null,null,{"$f":"IF(COUNTIF(D$2:$D85,D85)=1, MAX(Z$1:$AA84)+1,\"\")","v":""},{"$f":"IF(ROWS($Z$2:AB85)>ROW(INDIRECT(ADDRESS(MAX(AA:AA),2))),\"\",INDEX(INDIRECT(\"$D$2\"&\":$D$\"&MATCH(MAX(AA:AA),AA:AA,0)),MATCH(ROWS(D$1:$D84),INDIRECT(\"$AA$2\"&\":$AA$\"&MATCH(MAX(AA:AA),AA:AA,0)),0)))","v":""}]
[null,null,null,null,null,null,null,null,null,null,null,null,null,null,null,null,null,null,null,null,null,null,null,null,null,null,{"$f":"IF(COUNTIF(D$2:$D86,D86)=1, MAX(Z$1:$AA85)+1,\"\")","v":""},{"$f":"IF(ROWS($Z$2:AB86)>ROW(INDIRECT(ADDRESS(MAX(AA:AA),2))),\"\",INDEX(INDIRECT(\"$D$2\"&\":$D$\"&MATCH(MAX(AA:AA),AA:AA,0)),MATCH(ROWS(D$1:$D85),INDIRECT(\"$AA$2\"&\":$AA$\"&MATCH(MAX(AA:AA),AA:AA,0)),0)))","v":""}]
[null,null,null,null,null,null,null,null,null,null,null,null,null,null,null,null,null,null,null,null,null,null,null,null,null,null,{"$f":"IF(COUNTIF(D$2:$D87,D87)=1, MAX(Z$1:$AA86)+1,\"\")","v":""},{"$f":"IF(ROWS($Z$2:AB87)>ROW(INDIRECT(ADDRESS(MAX(AA:AA),2))),\"\",INDEX(INDIRECT(\"$D$2\"&\":$D$\"&MATCH(MAX(AA:AA),AA:AA,0)),MATCH(ROWS(D$1:$D86),INDIRECT(\"$AA$2\"&\":$AA$\"&MATCH(MAX(AA:AA),AA:AA,0)),0)))","v":""}]
[null,null,null,null,null,null,null,null,null,null,null,null,null,null,null,null,null,null,null,null,null,null,null,null,null,null,{"$f":"IF(COUNTIF(D$2:$D88,D88)=1, MAX(Z$1:$AA87)+1,\"\")","v":""},{"$f":"IF(ROWS($Z$2:AB88)>ROW(INDIRECT(ADDRESS(MAX(AA:AA),2))),\"\",INDEX(INDIRECT(\"$D$2\"&\":$D$\"&MATCH(MAX(AA:AA),AA:AA,0)),MATCH(ROWS(D$1:$D87),INDIRECT(\"$AA$2\"&\":$AA$\"&MATCH(MAX(AA:AA),AA:AA,0)),0)))","v":""}]
[null,null,null,null,null,null,null,null,null,null,null,null,null,null,null,null,null,null,null,null,null,null,null,null,null,null,{"$f":"IF(COUNTIF(D$2:$D89,D89)=1, MAX(Z$1:$AA88)+1,\"\")","v":""},{"$f":"IF(ROWS($Z$2:AB89)>ROW(INDIRECT(ADDRESS(MAX(AA:AA),2))),\"\",INDEX(INDIRECT(\"$D$2\"&\":$D$\"&MATCH(MAX(AA:AA),AA:AA,0)),MATCH(ROWS(D$1:$D88),INDIRECT(\"$AA$2\"&\":$AA$\"&MATCH(MAX(AA:AA),AA:AA,0)),0)))","v":""}]
[null,null,null,null,null,null,null,null,null,null,null,null,null,null,null,null,null,null,null,null,null,null,null,null,null,null,{"$f":"IF(COUNTIF(D$2:$D90,D90)=1, MAX(Z$1:$AA89)+1,\"\")","v":""},{"$f":"IF(ROWS($Z$2:AB90)>ROW(INDIRECT(ADDRESS(MAX(AA:AA),2))),\"\",INDEX(INDIRECT(\"$D$2\"&\":$D$\"&MATCH(MAX(AA:AA),AA:AA,0)),MATCH(ROWS(D$1:$D89),INDIRECT(\"$AA$2\"&\":$AA$\"&MATCH(MAX(AA:AA),AA:AA,0)),0)))","v":""}]
[null,null,null,null,null,null,null,null,null,null,null,null,null,null,null,null,null,null,null,null,null,null,null,null,null,null,{"$f":"IF(COUNTIF(D$2:$D91,D91)=1, MAX(Z$1:$AA90)+1,\"\")","v":""},{"$f":"IF(ROWS($Z$2:AB91)>ROW(INDIRECT(ADDRESS(MAX(AA:AA),2))),\"\",INDEX(INDIRECT(\"$D$2\"&\":$D$\"&MATCH(MAX(AA:AA),AA:AA,0)),MATCH(ROWS(D$1:$D90),INDIRECT(\"$AA$2\"&\":$AA$\"&MATCH(MAX(AA:AA),AA:AA,0)),0)))","v":""}]
[null,null,null,null,null,null,null,null,null,null,null,null,null,null,null,null,null,null,null,null,null,null,null,null,null,null,{"$f":"IF(COUNTIF(D$2:$D92,D92)=1, MAX(Z$1:$AA91)+1,\"\")","v":""},{"$f":"IF(ROWS($Z$2:AB92)>ROW(INDIRECT(ADDRESS(MAX(AA:AA),2))),\"\",INDEX(INDIRECT(\"$D$2\"&\":$D$\"&MATCH(MAX(AA:AA),AA:AA,0)),MATCH(ROWS(D$1:$D91),INDIRECT(\"$AA$2\"&\":$AA$\"&MATCH(MAX(AA:AA),AA:AA,0)),0)))","v":""}]
[null,null,null,null,null,null,null,null,null,null,null,null,null,null,null,null,null,null,null,null,null,null,null,null,null,null,{"$f":"IF(COUNTIF(D$2:$D93,D93)=1, MAX(Z$1:$AA92)+1,\"\")","v":""},{"$f":"IF(ROWS($Z$2:AB93)>ROW(INDIRECT(ADDRESS(MAX(AA:AA),2))),\"\",INDEX(INDIRECT(\"$D$2\"&\":$D$\"&MATCH(MAX(AA:AA),AA:AA,0)),MATCH(ROWS(D$1:$D92),INDIRECT(\"$AA$2\"&\":$AA$\"&MATCH(MAX(AA:AA),AA:AA,0)),0)))","v":""}]
[null,null,null,null,null,null,null,null,null,null,null,null,null,null,null,null,null,null,null,null,null,null,null,null,null,null,{"$f":"IF(COUNTIF(D$2:$D94,D94)=1, MAX(Z$1:$AA93)+1,\"\")","v":""},{"$f":"IF(ROWS($Z$2:AB94)>ROW(INDIRECT(ADDRESS(MAX(AA:AA),2))),\"\",INDEX(INDIRECT(\"$D$2\"&\":$D$\"&MATCH(MAX(AA:AA),AA:AA,0)),MATCH(ROWS(D$1:$D93),INDIRECT(\"$AA$2\"&\":$AA$\"&MATCH(MAX(AA:AA),AA:AA,0)),0)))","v":""}]
[null,null,null,null,null,null,null,null,null,null,null,null,null,null,null,null,null,null,null,null,null,null,null,null,null,null,{"$f":"IF(COUNTIF(D$2:$D95,D95)=1, MAX(Z$1:$AA94)+1,\"\")","v":""},{"$f":"IF(ROWS($Z$2:AB95)>ROW(INDIRECT(ADDRESS(MAX(AA:AA),2))),\"\",INDEX(INDIRECT(\"$D$2\"&\":$D$\"&MATCH(MAX(AA:AA),AA:AA,0)),MATCH(ROWS(D$1:$D94),INDIRECT(\"$AA$2\"&\":$AA$\"&MATCH(MAX(AA:AA),AA:AA,0)),0)))","v":""}]
[null,null,null,null,null,null,null,null,null,null,null,null,null,null,null,null,null,null,null,null,null,null,null,null,null,null,{"$f":"IF(COUNTIF(D$2:$D96,D96)=1, MAX(Z$1:$AA95)+1,\"\")","v":""},{"$f":"IF(ROWS($Z$2:AB96)>ROW(INDIRECT(ADDRESS(MAX(AA:AA),2))),\"\",INDEX(INDIRECT(\"$D$2\"&\":$D$\"&MATCH(MAX(AA:AA),AA:AA,0)),MATCH(ROWS(D$1:$D95),INDIRECT(\"$AA$2\"&\":$AA$\"&MATCH(MAX(AA:AA),AA:AA,0)),0)))","v":""}]
[null,null,null,null,null,null,null,null,null,null,null,null,null,null,null,null,null,null,null,null,null,null,null,null,null,null,{"$f":"IF(COUNTIF(D$2:$D97,D97)=1, MAX(Z$1:$AA96)+1,\"\")","v":""},{"$f":"IF(ROWS($Z$2:AB97)>ROW(INDIRECT(ADDRESS(MAX(AA:AA),2))),\"\",INDEX(INDIRECT(\"$D$2\"&\":$D$\"&MATCH(MAX(AA:AA),AA:AA,0)),MATCH(ROWS(D$1:$D96),INDIRECT(\"$AA$2\"&\":$AA$\"&MATCH(MAX(AA:AA),AA:AA,0)),0)))","v":""}]
[null,null,null,null,null,null,null,null,null,null,null,null,null,null,null,null,null,null,null,null,null,null,null,null,null,null,{"$f":"IF(COUNTIF(D$2:$D98,D98)=1, MAX(Z$1:$AA97)+1,\"\")","v":""},{"$f":"IF(ROWS($Z$2:AB98)>ROW(INDIRECT(ADDRESS(MAX(AA:AA),2))),\"\",INDEX(INDIRECT(\"$D$2\"&\":$D$\"&MATCH(MAX(AA:AA),AA:AA,0)),MATCH(ROWS(D$1:$D97),INDIRECT(\"$AA$2\"&\":$AA$\"&MATCH(MAX(AA:AA),AA:AA,0)),0)))","v":""}]
[null,null,null,null,null,null,null,null,null,null,null,null,null,null,null,null,null,null,null,null,null,null,null,null,null,null,{"$f":"IF(COUNTIF(D$2:$D99,D99)=1, MAX(Z$1:$AA98)+1,\"\")","v":""},{"$f":"IF(ROWS($Z$2:AB99)>ROW(INDIRECT(ADDRESS(MAX(AA:AA),2))),\"\",INDEX(INDIRECT(\"$D$2\"&\":$D$\"&MATCH(MAX(AA:AA),AA:AA,0)),MATCH(ROWS(D$1:$D98),INDIRECT(\"$AA$2\"&\":$AA$\"&MATCH(MAX(AA:AA),AA:AA,0)),0)))","v":""}]
[null,null,null,null,null,null,null,null,null,null,null,null,null,null,null,null,null,null,null,null,null,null,null,null,null,null,{"$f":"IF(COUNTIF(D$2:$D100,D100)=1, MAX(Z$1:$AA99)+1,\"\")","v":""},{"$f":"IF(ROWS($Z$2:AB100)>ROW(INDIRECT(ADDRESS(MAX(AA:AA),2))),\"\",INDEX(INDIRECT(\"$D$2\"&\":$D$\"&MATCH(MAX(AA:AA),AA:AA,0)),MATCH(ROWS(D$1:$D99),INDIRECT(\"$AA$2\"&\":$AA$\"&MATCH(MAX(AA:AA),AA:AA,0)),0)))","v":""}]
[null,null,null,null,null,null,null,null,null,null,null,null,null,null,null,null,null,null,null,null,null,null,null,null,null,null,{"$f":"IF(COUNTIF(D$2:$D101,D101)=1, MAX(Z$1:$AA100)+1,\"\")","v":""},{"$f":"IF(ROWS($Z$2:AB101)>ROW(INDIRECT(ADDRESS(MAX(AA:AA),2))),\"\",INDEX(INDIRECT(\"$D$2\"&\":$D$\"&MATCH(MAX(AA:AA),AA:AA,0)),MATCH(ROWS(D$1:$D100),INDIRECT(\"$AA$2\"&\":$AA$\"&MATCH(MAX(AA:AA),AA:AA,0)),0)))","v":""}]
[null,null,null,null,null,null,null,null,null,null,null,null,null,null,null,null,null,null,null,null,null,null,null,null,null,null,{"$f":"IF(COUNTIF(D$2:$D102,D102)=1, MAX(Z$1:$AA101)+1,\"\")","v":""},{"$f":"IF(ROWS($Z$2:AB102)>ROW(INDIRECT(ADDRESS(MAX(AA:AA),2))),\"\",INDEX(INDIRECT(\"$D$2\"&\":$D$\"&MATCH(MAX(AA:AA),AA:AA,0)),MATCH(ROWS(D$1:$D101),INDIRECT(\"$AA$2\"&\":$AA$\"&MATCH(MAX(AA:AA),AA:AA,0)),0)))","v":""}]
[null,null,null,null,null,null,null,null,null,null,null,null,null,null,null,null,null,null,null,null,null,null,null,null,null,null,{"$f":"IF(COUNTIF(D$2:$D103,D103)=1, MAX(Z$1:$AA102)+1,\"\")","v":""},{"$f":"IF(ROWS($Z$2:AB103)>ROW(INDIRECT(ADDRESS(MAX(AA:AA),2))),\"\",INDEX(INDIRECT(\"$D$2\"&\":$D$\"&MATCH(MAX(AA:AA),AA:AA,0)),MATCH(ROWS(D$1:$D102),INDIRECT(\"$AA$2\"&\":$AA$\"&MATCH(MAX(AA:AA),AA:AA,0)),0)))","v":""}]
[null,null,null,null,null,null,null,null,null,null,null,null,null,null,null,null,null,null,null,null,null,null,null,null,null,null,{"$f":"IF(COUNTIF(D$2:$D104,D104)=1, MAX(Z$1:$AA103)+1,\"\")","v":""},{"$f":"IF(ROWS($Z$2:AB104)>ROW(INDIRECT(ADDRESS(MAX(AA:AA),2))),\"\",INDEX(INDIRECT(\"$D$2\"&\":$D$\"&MATCH(MAX(AA:AA),AA:AA,0)),MATCH(ROWS(D$1:$D103),INDIRECT(\"$AA$2\"&\":$AA$\"&MATCH(MAX(AA:AA),AA:AA,0)),0)))","v":""}]
[null,null,null,null,null,null,null,null,null,null,null,null,null,null,null,null,null,null,null,null,null,null,null,null,null,null,{"$f":"IF(COUNTIF(D$2:$D105,D105)=1, MAX(Z$1:$AA104)+1,\"\")","v":""},{"$f":"IF(ROWS($Z$2:AB105)>ROW(INDIRECT(ADDRESS(MAX(AA:AA),2))),\"\",INDEX(INDIRECT(\"$D$2\"&\":$D$\"&MATCH(MAX(AA:AA),AA:AA,0)),MATCH(ROWS(D$1:$D104),INDIRECT(\"$AA$2\"&\":$AA$\"&MATCH(MAX(AA:AA),AA:AA,0)),0)))","v":""}]
[null,null,null,null,null,null,null,null,null,null,null,null,null,null,null,null,null,null,null,null,null,null,null,null,null,null,{"$f":"IF(COUNTIF(D$2:$D106,D106)=1, MAX(Z$1:$AA105)+1,\"\")","v":""},{"$f":"IF(ROWS($Z$2:AB106)>ROW(INDIRECT(ADDRESS(MAX(AA:AA),2))),\"\",INDEX(INDIRECT(\"$D$2\"&\":$D$\"&MATCH(MAX(AA:AA),AA:AA,0)),MATCH(ROWS(D$1:$D105),INDIRECT(\"$AA$2\"&\":$AA$\"&MATCH(MAX(AA:AA),AA:AA,0)),0)))","v":""}]
[null,null,null,null,null,null,null,null,null,null,null,null,null,null,null,null,null,null,null,null,null,null,null,null,null,null,{"$f":"IF(COUNTIF(D$2:$D107,D107)=1, MAX(Z$1:$AA106)+1,\"\")","v":""},{"$f":"IF(ROWS($Z$2:AB107)>ROW(INDIRECT(ADDRESS(MAX(AA:AA),2))),\"\",INDEX(INDIRECT(\"$D$2\"&\":$D$\"&MATCH(MAX(AA:AA),AA:AA,0)),MATCH(ROWS(D$1:$D106),INDIRECT(\"$AA$2\"&\":$AA$\"&MATCH(MAX(AA:AA),AA:AA,0)),0)))","v":""}]
[null,null,null,null,null,null,null,null,null,null,null,null,null,null,null,null,null,null,null,null,null,null,null,null,null,null,{"$f":"IF(COUNTIF(D$2:$D108,D108)=1, MAX(Z$1:$AA107)+1,\"\")","v":""},{"$f":"IF(ROWS($Z$2:AB108)>ROW(INDIRECT(ADDRESS(MAX(AA:AA),2))),\"\",INDEX(INDIRECT(\"$D$2\"&\":$D$\"&MATCH(MAX(AA:AA),AA:AA,0)),MATCH(ROWS(D$1:$D107),INDIRECT(\"$AA$2\"&\":$AA$\"&MATCH(MAX(AA:AA),AA:AA,0)),0)))","v":""}]
[null,null,null,null,null,null,null,null,null,null,null,null,null,null,null,null,null,null,null,null,null,null,null,null,null,null,{"$f":"IF(COUNTIF(D$2:$D109,D109)=1, MAX(Z$1:$AA108)+1,\"\")","v":""},{"$f":"IF(ROWS($Z$2:AB109)>ROW(INDIRECT(ADDRESS(MAX(AA:AA),2))),\"\",INDEX(INDIRECT(\"$D$2\"&\":$D$\"&MATCH(MAX(AA:AA),AA:AA,0)),MATCH(ROWS(D$1:$D108),INDIRECT(\"$AA$2\"&\":$AA$\"&MATCH(MAX(AA:AA),AA:AA,0)),0)))","v":""}]
[null,null,null,null,null,null,null,null,null,null,null,null,null,null,null,null,null,null,null,null,null,null,null,null,null,null,{"$f":"IF(COUNTIF(D$2:$D110,D110)=1, MAX(Z$1:$AA109)+1,\"\")","v":""},{"$f":"IF(ROWS($Z$2:AB110)>ROW(INDIRECT(ADDRESS(MAX(AA:AA),2))),\"\",INDEX(INDIRECT(\"$D$2\"&\":$D$\"&MATCH(MAX(AA:AA),AA:AA,0)),MATCH(ROWS(D$1:$D109),INDIRECT(\"$AA$2\"&\":$AA$\"&MATCH(MAX(AA:AA),AA:AA,0)),0)))","v":""}]
[null,null,null,null,null,null,null,null,null,null,null,null,null,null,null,null,null,null,null,null,null,null,null,null,null,null,{"$f":"IF(COUNTIF(D$2:$D111,D111)=1, MAX(Z$1:$AA110)+1,\"\")","v":""},{"$f":"IF(ROWS($Z$2:AB111)>ROW(INDIRECT(ADDRESS(MAX(AA:AA),2))),\"\",INDEX(INDIRECT(\"$D$2\"&\":$D$\"&MATCH(MAX(AA:AA),AA:AA,0)),MATCH(ROWS(D$1:$D110),INDIRECT(\"$AA$2\"&\":$AA$\"&MATCH(MAX(AA:AA),AA:AA,0)),0)))","v":""}]
[null,null,null,null,null,null,null,null,null,null,null,null,null,null,null,null,null,null,null,null,null,null,null,null,null,null,{"$f":"IF(COUNTIF(D$2:$D112,D112)=1, MAX(Z$1:$AA111)+1,\"\")","v":""},{"$f":"IF(ROWS($Z$2:AB112)>ROW(INDIRECT(ADDRESS(MAX(AA:AA),2))),\"\",INDEX(INDIRECT(\"$D$2\"&\":$D$\"&MATCH(MAX(AA:AA),AA:AA,0)),MATCH(ROWS(D$1:$D111),INDIRECT(\"$AA$2\"&\":$AA$\"&MATCH(MAX(AA:AA),AA:AA,0)),0)))","v":""}]
[null,null,null,null,null,null,null,null,null,null,null,null,null,null,null,null,null,null,null,null,null,null,null,null,null,null,{"$f":"IF(COUNTIF(D$2:$D113,D113)=1, MAX(Z$1:$AA112)+1,\"\")","v":""},{"$f":"IF(ROWS($Z$2:AB113)>ROW(INDIRECT(ADDRESS(MAX(AA:AA),2))),\"\",INDEX(INDIRECT(\"$D$2\"&\":$D$\"&MATCH(MAX(AA:AA),AA:AA,0)),MATCH(ROWS(D$1:$D112),INDIRECT(\"$AA$2\"&\":$AA$\"&MATCH(MAX(AA:AA),AA:AA,0)),0)))","v":""}]
[null,null,null,null,null,null,null,null,null,null,null,null,null,null,null,null,null,null,null,null,null,null,null,null,null,null,{"$f":"IF(COUNTIF(D$2:$D114,D114)=1, MAX(Z$1:$AA113)+1,\"\")","v":""},{"$f":"IF(ROWS($Z$2:AB114)>ROW(INDIRECT(ADDRESS(MAX(AA:AA),2))),\"\",INDEX(INDIRECT(\"$D$2\"&\":$D$\"&MATCH(MAX(AA:AA),AA:AA,0)),MATCH(ROWS(D$1:$D113),INDIRECT(\"$AA$2\"&\":$AA$\"&MATCH(MAX(AA:AA),AA:AA,0)),0)))","v":""}]
[null,null,null,null,null,null,null,null,null,null,null,null,null,null,null,null,null,null,null,null,null,null,null,null,null,null,{"$f":"IF(COUNTIF(D$2:$D115,D115)=1, MAX(Z$1:$AA114)+1,\"\")","v":""},{"$f":"IF(ROWS($Z$2:AB115)>ROW(INDIRECT(ADDRESS(MAX(AA:AA),2))),\"\",INDEX(INDIRECT(\"$D$2\"&\":$D$\"&MATCH(MAX(AA:AA),AA:AA,0)),MATCH(ROWS(D$1:$D114),INDIRECT(\"$AA$2\"&\":$AA$\"&MATCH(MAX(AA:AA),AA:AA,0)),0)))","v":""}]
[null,null,null,null,null,null,null,null,null,null,null,null,null,null,null,null,null,null,null,null,null,null,null,null,null,null,{"$f":"IF(COUNTIF(D$2:$D116,D116)=1, MAX(Z$1:$AA115)+1,\"\")","v":""},{"$f":"IF(ROWS($Z$2:AB116)>ROW(INDIRECT(ADDRESS(MAX(AA:AA),2))),\"\",INDEX(INDIRECT(\"$D$2\"&\":$D$\"&MATCH(MAX(AA:AA),AA:AA,0)),MATCH(ROWS(D$1:$D115),INDIRECT(\"$AA$2\"&\":$AA$\"&MATCH(MAX(AA:AA),AA:AA,0)),0)))","v":""}]
[null,null,null,null,null,null,null,null,null,null,null,null,null,null,null,null,null,null,null,null,null,null,null,null,null,null,{"$f":"IF(COUNTIF(D$2:$D117,D117)=1, MAX(Z$1:$AA116)+1,\"\")","v":""},{"$f":"IF(ROWS($Z$2:AB117)>ROW(INDIRECT(ADDRESS(MAX(AA:AA),2))),\"\",INDEX(INDIRECT(\"$D$2\"&\":$D$\"&MATCH(MAX(AA:AA),AA:AA,0)),MATCH(ROWS(D$1:$D116),INDIRECT(\"$AA$2\"&\":$AA$\"&MATCH(MAX(AA:AA),AA:AA,0)),0)))","v":""}]
[null,null,null,null,null,null,null,null,null,null,null,null,null,null,null,null,null,null,null,null,null,null,null,null,null,null,{"$f":"IF(COUNTIF(D$2:$D118,D118)=1, MAX(Z$1:$AA117)+1,\"\")","v":""},{"$f":"IF(ROWS($Z$2:AB118)>ROW(INDIRECT(ADDRESS(MAX(AA:AA),2))),\"\",INDEX(INDIRECT(\"$D$2\"&\":$D$\"&MATCH(MAX(AA:AA),AA:AA,0)),MATCH(ROWS(D$1:$D117),INDIRECT(\"$AA$2\"&\":$AA$\"&MATCH(MAX(AA:AA),AA:AA,0)),0)))","v":""}]
[null,null,null,null,null,null,null,null,null,null,null,null,null,null,null,null,null,null,null,null,null,null,null,null,null,null,{"$f":"IF(COUNTIF(D$2:$D119,D119)=1, MAX(Z$1:$AA118)+1,\"\")","v":""},{"$f":"IF(ROWS($Z$2:AB119)>ROW(INDIRECT(ADDRESS(MAX(AA:AA),2))),\"\",INDEX(INDIRECT(\"$D$2\"&\":$D$\"&MATCH(MAX(AA:AA),AA:AA,0)),MATCH(ROWS(D$1:$D118),INDIRECT(\"$AA$2\"&\":$AA$\"&MATCH(MAX(AA:AA),AA:AA,0)),0)))","v":""}]
[null,null,null,null,null,null,null,null,null,null,null,null,null,null,null,null,null,null,null,null,null,null,null,null,null,null,{"$f":"IF(COUNTIF(D$2:$D120,D120)=1, MAX(Z$1:$AA119)+1,\"\")","v":""},{"$f":"IF(ROWS($Z$2:AB120)>ROW(INDIRECT(ADDRESS(MAX(AA:AA),2))),\"\",INDEX(INDIRECT(\"$D$2\"&\":$D$\"&MATCH(MAX(AA:AA),AA:AA,0)),MATCH(ROWS(D$1:$D119),INDIRECT(\"$AA$2\"&\":$AA$\"&MATCH(MAX(AA:AA),AA:AA,0)),0)))","v":""}]
[null,null,null,null,null,null,null,null,null,null,null,null,null,null,null,null,null,null,null,null,null,null,null,null,null,null,{"$f":"IF(COUNTIF(D$2:$D121,D121)=1, MAX(Z$1:$AA120)+1,\"\")","v":""},{"$f":"IF(ROWS($Z$2:AB121)>ROW(INDIRECT(ADDRESS(MAX(AA:AA),2))),\"\",INDEX(INDIRECT(\"$D$2\"&\":$D$\"&MATCH(MAX(AA:AA),AA:AA,0)),MATCH(ROWS(D$1:$D120),INDIRECT(\"$AA$2\"&\":$AA$\"&MATCH(MAX(AA:AA),AA:AA,0)),0)))","v":""}]
[null,null,null,null,null,null,null,null,null,null,null,null,null,null,null,null,null,null,null,null,null,null,null,null,null,null,{"$f":"IF(COUNTIF(D$2:$D122,D122)=1, MAX(Z$1:$AA121)+1,\"\")","v":""},{"$f":"IF(ROWS($Z$2:AB122)>ROW(INDIRECT(ADDRESS(MAX(AA:AA),2))),\"\",INDEX(INDIRECT(\"$D$2\"&\":$D$\"&MATCH(MAX(AA:AA),AA:AA,0)),MATCH(ROWS(D$1:$D121),INDIRECT(\"$AA$2\"&\":$AA$\"&MATCH(MAX(AA:AA),AA:AA,0)),0)))","v":""}]
[null,null,null,null,null,null,null,null,null,null,null,null,null,null,null,null,null,null,null,null,null,null,null,null,null,null,{"$f":"IF(COUNTIF(D$2:$D123,D123)=1, MAX(Z$1:$AA122)+1,\"\")","v":""},{"$f":"IF(ROWS($Z$2:AB123)>ROW(INDIRECT(ADDRESS(MAX(AA:AA),2))),\"\",INDEX(INDIRECT(\"$D$2\"&\":$D$\"&MATCH(MAX(AA:AA),AA:AA,0)),MATCH(ROWS(D$1:$D122),INDIRECT(\"$AA$2\"&\":$AA$\"&MATCH(MAX(AA:AA),AA:AA,0)),0)))","v":""}]
[null,null,null,null,null,null,null,null,null,null,null,null,null,null,null,null,null,null,null,null,null,null,null,null,null,null,{"$f":"IF(COUNTIF(D$2:$D124,D124)=1, MAX(Z$1:$AA123)+1,\"\")","v":""},{"$f":"IF(ROWS($Z$2:AB124)>ROW(INDIRECT(ADDRESS(MAX(AA:AA),2))),\"\",INDEX(INDIRECT(\"$D$2\"&\":$D$\"&MATCH(MAX(AA:AA),AA:AA,0)),MATCH(ROWS(D$1:$D123),INDIRECT(\"$AA$2\"&\":$AA$\"&MATCH(MAX(AA:AA),AA:AA,0)),0)))","v":""}]
[null,null,null,null,null,null,null,null,null,null,null,null,null,null,null,null,null,null,null,null,null,null,null,null,null,null,{"$f":"IF(COUNTIF(D$2:$D125,D125)=1, MAX(Z$1:$AA124)+1,\"\")","v":""},{"$f":"IF(ROWS($Z$2:AB125)>ROW(INDIRECT(ADDRESS(MAX(AA:AA),2))),\"\",INDEX(INDIRECT(\"$D$2\"&\":$D$\"&MATCH(MAX(AA:AA),AA:AA,0)),MATCH(ROWS(D$1:$D124),INDIRECT(\"$AA$2\"&\":$AA$\"&MATCH(MAX(AA:AA),AA:AA,0)),0)))","v":""}]
[null,null,null,null,null,null,null,null,null,null,null,null,null,null,null,null,null,null,null,null,null,null,null,null,null,null,{"$f":"IF(COUNTIF(D$2:$D126,D126)=1, MAX(Z$1:$AA125)+1,\"\")","v":""},{"$f":"IF(ROWS($Z$2:AB126)>ROW(INDIRECT(ADDRESS(MAX(AA:AA),2))),\"\",INDEX(INDIRECT(\"$D$2\"&\":$D$\"&MATCH(MAX(AA:AA),AA:AA,0)),MATCH(ROWS(D$1:$D125),INDIRECT(\"$AA$2\"&\":$AA$\"&MATCH(MAX(AA:AA),AA:AA,0)),0)))","v":""}]
[null,null,null,null,null,null,null,null,null,null,null,null,null,null,null,null,null,null,null,null,null,null,null,null,null,null,{"$f":"IF(COUNTIF(D$2:$D127,D127)=1, MAX(Z$1:$AA126)+1,\"\")","v":""},{"$f":"IF(ROWS($Z$2:AB127)>ROW(INDIRECT(ADDRESS(MAX(AA:AA),2))),\"\",INDEX(INDIRECT(\"$D$2\"&\":$D$\"&MATCH(MAX(AA:AA),AA:AA,0)),MATCH(ROWS(D$1:$D126),INDIRECT(\"$AA$2\"&\":$AA$\"&MATCH(MAX(AA:AA),AA:AA,0)),0)))","v":""}]
[null,null,null,null,null,null,null,null,null,null,null,null,null,null,null,null,null,null,null,null,null,null,null,null,null,null,{"$f":"IF(COUNTIF(D$2:$D128,D128)=1, MAX(Z$1:$AA127)+1,\"\")","v":""},{"$f":"IF(ROWS($Z$2:AB128)>ROW(INDIRECT(ADDRESS(MAX(AA:AA),2))),\"\",INDEX(INDIRECT(\"$D$2\"&\":$D$\"&MATCH(MAX(AA:AA),AA:AA,0)),MATCH(ROWS(D$1:$D127),INDIRECT(\"$AA$2\"&\":$AA$\"&MATCH(MAX(AA:AA),AA:AA,0)),0)))","v":""}]
[null,null,null,null,null,null,null,null,null,null,null,null,null,null,null,null,null,null,null,null,null,null,null,null,null,null,{"$f":"IF(COUNTIF(D$2:$D129,D129)=1, MAX(Z$1:$AA128)+1,\"\")","v":""},{"$f":"IF(ROWS($Z$2:AB129)>ROW(INDIRECT(ADDRESS(MAX(AA:AA),2))),\"\",INDEX(INDIRECT(\"$D$2\"&\":$D$\"&MATCH(MAX(AA:AA),AA:AA,0)),MATCH(ROWS(D$1:$D128),INDIRECT(\"$AA$2\"&\":$AA$\"&MATCH(MAX(AA:AA),AA:AA,0)),0)))","v":""}]
[null,null,null,null,null,null,null,null,null,null,null,null,null,null,null,null,null,null,null,null,null,null,null,null,null,null,{"$f":"IF(COUNTIF(D$2:$D130,D130)=1, MAX(Z$1:$AA129)+1,\"\")","v":""},{"$f":"IF(ROWS($Z$2:AB130)>ROW(INDIRECT(ADDRESS(MAX(AA:AA),2))),\"\",INDEX(INDIRECT(\"$D$2\"&\":$D$\"&MATCH(MAX(AA:AA),AA:AA,0)),MATCH(ROWS(D$1:$D129),INDIRECT(\"$AA$2\"&\":$AA$\"&MATCH(MAX(AA:AA),AA:AA,0)),0)))","v":""}]
[null,null,null,null,null,null,null,null,null,null,null,null,null,null,null,null,null,null,null,null,null,null,null,null,null,null,{"$f":"IF(COUNTIF(D$2:$D131,D131)=1, MAX(Z$1:$AA130)+1,\"\")","v":""},{"$f":"IF(ROWS($Z$2:AB131)>ROW(INDIRECT(ADDRESS(MAX(AA:AA),2))),\"\",INDEX(INDIRECT(\"$D$2\"&\":$D$\"&MATCH(MAX(AA:AA),AA:AA,0)),MATCH(ROWS(D$1:$D130),INDIRECT(\"$AA$2\"&\":$AA$\"&MATCH(MAX(AA:AA),AA:AA,0)),0)))","v":""}]
[null,null,null,null,null,null,null,null,null,null,null,null,null,null,null,null,null,null,null,null,null,null,null,null,null,null,{"$f":"IF(COUNTIF(D$2:$D132,D132)=1, MAX(Z$1:$AA131)+1,\"\")","v":""},{"$f":"IF(ROWS($Z$2:AB132)>ROW(INDIRECT(ADDRESS(MAX(AA:AA),2))),\"\",INDEX(INDIRECT(\"$D$2\"&\":$D$\"&MATCH(MAX(AA:AA),AA:AA,0)),MATCH(ROWS(D$1:$D131),INDIRECT(\"$AA$2\"&\":$AA$\"&MATCH(MAX(AA:AA),AA:AA,0)),0)))","v":""}]
[null,null,null,null,null,null,null,null,null,null,null,null,null,null,null,null,null,null,null,null,null,null,null,null,null,null,{"$f":"IF(COUNTIF(D$2:$D133,D133)=1, MAX(Z$1:$AA132)+1,\"\")","v":""},{"$f":"IF(ROWS($Z$2:AB133)>ROW(INDIRECT(ADDRESS(MAX(AA:AA),2))),\"\",INDEX(INDIRECT(\"$D$2\"&\":$D$\"&MATCH(MAX(AA:AA),AA:AA,0)),MATCH(ROWS(D$1:$D132),INDIRECT(\"$AA$2\"&\":$AA$\"&MATCH(MAX(AA:AA),AA:AA,0)),0)))","v":""}]
[null,null,null,null,null,null,null,null,null,null,null,null,null,null,null,null,null,null,null,null,null,null,null,null,null,null,{"$f":"IF(COUNTIF(D$2:$D134,D134)=1, MAX(Z$1:$AA133)+1,\"\")","v":""},{"$f":"IF(ROWS($Z$2:AB134)>ROW(INDIRECT(ADDRESS(MAX(AA:AA),2))),\"\",INDEX(INDIRECT(\"$D$2\"&\":$D$\"&MATCH(MAX(AA:AA),AA:AA,0)),MATCH(ROWS(D$1:$D133),INDIRECT(\"$AA$2\"&\":$AA$\"&MATCH(MAX(AA:AA),AA:AA,0)),0)))","v":""}]
[null,null,null,null,null,null,null,null,null,null,null,null,null,null,null,null,null,null,null,null,null,null,null,null,null,null,{"$f":"IF(COUNTIF(D$2:$D135,D135)=1, MAX(Z$1:$AA134)+1,\"\")","v":""},{"$f":"IF(ROWS($Z$2:AB135)>ROW(INDIRECT(ADDRESS(MAX(AA:AA),2))),\"\",INDEX(INDIRECT(\"$D$2\"&\":$D$\"&MATCH(MAX(AA:AA),AA:AA,0)),MATCH(ROWS(D$1:$D134),INDIRECT(\"$AA$2\"&\":$AA$\"&MATCH(MAX(AA:AA),AA:AA,0)),0)))","v":""}]
[null,null,null,null,null,null,null,null,null,null,null,null,null,null,null,null,null,null,null,null,null,null,null,null,null,null,{"$f":"IF(COUNTIF(D$2:$D136,D136)=1, MAX(Z$1:$AA135)+1,\"\")","v":""},{"$f":"IF(ROWS($Z$2:AB136)>ROW(INDIRECT(ADDRESS(MAX(AA:AA),2))),\"\",INDEX(INDIRECT(\"$D$2\"&\":$D$\"&MATCH(MAX(AA:AA),AA:AA,0)),MATCH(ROWS(D$1:$D135),INDIRECT(\"$AA$2\"&\":$AA$\"&MATCH(MAX(AA:AA),AA:AA,0)),0)))","v":""}]
[null,null,null,null,null,null,null,null,null,null,null,null,null,null,null,null,null,null,null,null,null,null,null,null,null,null,{"$f":"IF(COUNTIF(D$2:$D137,D137)=1, MAX(Z$1:$AA136)+1,\"\")","v":""},{"$f":"IF(ROWS($Z$2:AB137)>ROW(INDIRECT(ADDRESS(MAX(AA:AA),2))),\"\",INDEX(INDIRECT(\"$D$2\"&\":$D$\"&MATCH(MAX(AA:AA),AA:AA,0)),MATCH(ROWS(D$1:$D136),INDIRECT(\"$AA$2\"&\":$AA$\"&MATCH(MAX(AA:AA),AA:AA,0)),0)))","v":""}]
[null,null,null,null,null,null,null,null,null,null,null,null,null,null,null,null,null,null,null,null,null,null,null,null,null,null,{"$f":"IF(COUNTIF(D$2:$D138,D138)=1, MAX(Z$1:$AA137)+1,\"\")","v":""},{"$f":"IF(ROWS($Z$2:AB138)>ROW(INDIRECT(ADDRESS(MAX(AA:AA),2))),\"\",INDEX(INDIRECT(\"$D$2\"&\":$D$\"&MATCH(MAX(AA:AA),AA:AA,0)),MATCH(ROWS(D$1:$D137),INDIRECT(\"$AA$2\"&\":$AA$\"&MATCH(MAX(AA:AA),AA:AA,0)),0)))","v":""}]
[null,null,null,null,null,null,null,null,null,null,null,null,null,null,null,null,null,null,null,null,null,null,null,null,null,null,{"$f":"IF(COUNTIF(D$2:$D139,D139)=1, MAX(Z$1:$AA138)+1,\"\")","v":""},{"$f":"IF(ROWS($Z$2:AB139)>ROW(INDIRECT(ADDRESS(MAX(AA:AA),2))),\"\",INDEX(INDIRECT(\"$D$2\"&\":$D$\"&MATCH(MAX(AA:AA),AA:AA,0)),MATCH(ROWS(D$1:$D138),INDIRECT(\"$AA$2\"&\":$AA$\"&MATCH(MAX(AA:AA),AA:AA,0)),0)))","v":""}]
[null,null,null,null,null,null,null,null,null,null,null,null,null,null,null,null,null,null,null,null,null,null,null,null,null,null,{"$f":"IF(COUNTIF(D$2:$D140,D140)=1, MAX(Z$1:$AA139)+1,\"\")","v":""},{"$f":"IF(ROWS($Z$2:AB140)>ROW(INDIRECT(ADDRESS(MAX(AA:AA),2))),\"\",INDEX(INDIRECT(\"$D$2\"&\":$D$\"&MATCH(MAX(AA:AA),AA:AA,0)),MATCH(ROWS(D$1:$D139),INDIRECT(\"$AA$2\"&\":$AA$\"&MATCH(MAX(AA:AA),AA:AA,0)),0)))","v":""}]
[null,null,null,null,null,null,null,null,null,null,null,null,null,null,null,null,null,null,null,null,null,null,null,null,null,null,{"$f":"IF(COUNTIF(D$2:$D141,D141)=1, MAX(Z$1:$AA140)+1,\"\")","v":""},{"$f":"IF(ROWS($Z$2:AB141)>ROW(INDIRECT(ADDRESS(MAX(AA:AA),2))),\"\",INDEX(INDIRECT(\"$D$2\"&\":$D$\"&MATCH(MAX(AA:AA),AA:AA,0)),MATCH(ROWS(D$1:$D140),INDIRECT(\"$AA$2\"&\":$AA$\"&MATCH(MAX(AA:AA),AA:AA,0)),0)))","v":""}]
[null,null,null,null,null,null,null,null,null,null,null,null,null,null,null,null,null,null,null,null,null,null,null,null,null,null,{"$f":"IF(COUNTIF(D$2:$D142,D142)=1, MAX(Z$1:$AA141)+1,\"\")","v":""},{"$f":"IF(ROWS($Z$2:AB142)>ROW(INDIRECT(ADDRESS(MAX(AA:AA),2))),\"\",INDEX(INDIRECT(\"$D$2\"&\":$D$\"&MATCH(MAX(AA:AA),AA:AA,0)),MATCH(ROWS(D$1:$D141),INDIRECT(\"$AA$2\"&\":$AA$\"&MATCH(MAX(AA:AA),AA:AA,0)),0)))","v":""}]
[null,null,null,null,null,null,null,null,null,null,null,null,null,null,null,null,null,null,null,null,null,null,null,null,null,null,{"$f":"IF(COUNTIF(D$2:$D143,D143)=1, MAX(Z$1:$AA142)+1,\"\")","v":""},{"$f":"IF(ROWS($Z$2:AB143)>ROW(INDIRECT(ADDRESS(MAX(AA:AA),2))),\"\",INDEX(INDIRECT(\"$D$2\"&\":$D$\"&MATCH(MAX(AA:AA),AA:AA,0)),MATCH(ROWS(D$1:$D142),INDIRECT(\"$AA$2\"&\":$AA$\"&MATCH(MAX(AA:AA),AA:AA,0)),0)))","v":""}]
[null,null,null,null,null,null,null,null,null,null,null,null,null,null,null,null,null,null,null,null,null,null,null,null,null,null,{"$f":"IF(COUNTIF(D$2:$D144,D144)=1, MAX(Z$1:$AA143)+1,\"\")","v":""},{"$f":"IF(ROWS($Z$2:AB144)>ROW(INDIRECT(ADDRESS(MAX(AA:AA),2))),\"\",INDEX(INDIRECT(\"$D$2\"&\":$D$\"&MATCH(MAX(AA:AA),AA:AA,0)),MATCH(ROWS(D$1:$D143),INDIRECT(\"$AA$2\"&\":$AA$\"&MATCH(MAX(AA:AA),AA:AA,0)),0)))","v":""}]
[null,null,null,null,null,null,null,null,null,null,null,null,null,null,null,null,null,null,null,null,null,null,null,null,null,null,{"$f":"IF(COUNTIF(D$2:$D145,D145)=1, MAX(Z$1:$AA144)+1,\"\")","v":""},{"$f":"IF(ROWS($Z$2:AB145)>ROW(INDIRECT(ADDRESS(MAX(AA:AA),2))),\"\",INDEX(INDIRECT(\"$D$2\"&\":$D$\"&MATCH(MAX(AA:AA),AA:AA,0)),MATCH(ROWS(D$1:$D144),INDIRECT(\"$AA$2\"&\":$AA$\"&MATCH(MAX(AA:AA),AA:AA,0)),0)))","v":""}]
[null,null,null,null,null,null,null,null,null,null,null,null,null,null,null,null,null,null,null,null,null,null,null,null,null,null,{"$f":"IF(COUNTIF(D$2:$D146,D146)=1, MAX(Z$1:$AA145)+1,\"\")","v":""},{"$f":"IF(ROWS($Z$2:AB146)>ROW(INDIRECT(ADDRESS(MAX(AA:AA),2))),\"\",INDEX(INDIRECT(\"$D$2\"&\":$D$\"&MATCH(MAX(AA:AA),AA:AA,0)),MATCH(ROWS(D$1:$D145),INDIRECT(\"$AA$2\"&\":$AA$\"&MATCH(MAX(AA:AA),AA:AA,0)),0)))","v":""}]
[null,null,null,null,null,null,null,null,null,null,null,null,null,null,null,null,null,null,null,null,null,null,null,null,null,null,{"$f":"IF(COUNTIF(D$2:$D147,D147)=1, MAX(Z$1:$AA146)+1,\"\")","v":""},{"$f":"IF(ROWS($Z$2:AB147)>ROW(INDIRECT(ADDRESS(MAX(AA:AA),2))),\"\",INDEX(INDIRECT(\"$D$2\"&\":$D$\"&MATCH(MAX(AA:AA),AA:AA,0)),MATCH(ROWS(D$1:$D146),INDIRECT(\"$AA$2\"&\":$AA$\"&MATCH(MAX(AA:AA),AA:AA,0)),0)))","v":""}]
[null,null,null,null,null,null,null,null,null,null,null,null,null,null,null,null,null,null,null,null,null,null,null,null,null,null,{"$f":"IF(COUNTIF(D$2:$D148,D148)=1, MAX(Z$1:$AA147)+1,\"\")","v":""},{"$f":"IF(ROWS($Z$2:AB148)>ROW(INDIRECT(ADDRESS(MAX(AA:AA),2))),\"\",INDEX(INDIRECT(\"$D$2\"&\":$D$\"&MATCH(MAX(AA:AA),AA:AA,0)),MATCH(ROWS(D$1:$D147),INDIRECT(\"$AA$2\"&\":$AA$\"&MATCH(MAX(AA:AA),AA:AA,0)),0)))","v":""}]
[null,null,null,null,null,null,null,null,null,null,null,null,null,null,null,null,null,null,null,null,null,null,null,null,null,null,{"$f":"IF(COUNTIF(D$2:$D149,D149)=1, MAX(Z$1:$AA148)+1,\"\")","v":""},{"$f":"IF(ROWS($Z$2:AB149)>ROW(INDIRECT(ADDRESS(MAX(AA:AA),2))),\"\",INDEX(INDIRECT(\"$D$2\"&\":$D$\"&MATCH(MAX(AA:AA),AA:AA,0)),MATCH(ROWS(D$1:$D148),INDIRECT(\"$AA$2\"&\":$AA$\"&MATCH(MAX(AA:AA),AA:AA,0)),0)))","v":""}]
[null,null,null,null,null,null,null,null,null,null,null,null,null,null,null,null,null,null,null,null,null,null,null,null,null,null,{"$f":"IF(COUNTIF(D$2:$D150,D150)=1, MAX(Z$1:$AA149)+1,\"\")","v":""},{"$f":"IF(ROWS($Z$2:AB150)>ROW(INDIRECT(ADDRESS(MAX(AA:AA),2))),\"\",INDEX(INDIRECT(\"$D$2\"&\":$D$\"&MATCH(MAX(AA:AA),AA:AA,0)),MATCH(ROWS(D$1:$D149),INDIRECT(\"$AA$2\"&\":$AA$\"&MATCH(MAX(AA:AA),AA:AA,0)),0)))","v":""}]
[null,null,null,null,null,null,null,null,null,null,null,null,null,null,null,null,null,null,null,null,null,null,null,null,null,null,{"$f":"IF(COUNTIF(D$2:$D151,D151)=1, MAX(Z$1:$AA150)+1,\"\")","v":""},{"$f":"IF(ROWS($Z$2:AB151)>ROW(INDIRECT(ADDRESS(MAX(AA:AA),2))),\"\",INDEX(INDIRECT(\"$D$2\"&\":$D$\"&MATCH(MAX(AA:AA),AA:AA,0)),MATCH(ROWS(D$1:$D150),INDIRECT(\"$AA$2\"&\":$AA$\"&MATCH(MAX(AA:AA),AA:AA,0)),0)))","v":""}]
[null,null,null,null,null,null,null,null,null,null,null,null,null,null,null,null,null,null,null,null,null,null,null,null,null,null,{"$f":"IF(COUNTIF(D$2:$D152,D152)=1, MAX(Z$1:$AA151)+1,\"\")","v":""},{"$f":"IF(ROWS($Z$2:AB152)>ROW(INDIRECT(ADDRESS(MAX(AA:AA),2))),\"\",INDEX(INDIRECT(\"$D$2\"&\":$D$\"&MATCH(MAX(AA:AA),AA:AA,0)),MATCH(ROWS(D$1:$D151),INDIRECT(\"$AA$2\"&\":$AA$\"&MATCH(MAX(AA:AA),AA:AA,0)),0)))","v":""}]
[null,null,null,null,null,null,null,null,null,null,null,null,null,null,null,null,null,null,null,null,null,null,null,null,null,null,{"$f":"IF(COUNTIF(D$2:$D153,D153)=1, MAX(Z$1:$AA152)+1,\"\")","v":""},{"$f":"IF(ROWS($Z$2:AB153)>ROW(INDIRECT(ADDRESS(MAX(AA:AA),2))),\"\",INDEX(INDIRECT(\"$D$2\"&\":$D$\"&MATCH(MAX(AA:AA),AA:AA,0)),MATCH(ROWS(D$1:$D152),INDIRECT(\"$AA$2\"&\":$AA$\"&MATCH(MAX(AA:AA),AA:AA,0)),0)))","v":""}]
[null,null,null,null,null,null,null,null,null,null,null,null,null,null,null,null,null,null,null,null,null,null,null,null,null,null,{"$f":"IF(COUNTIF(D$2:$D154,D154)=1, MAX(Z$1:$AA153)+1,\"\")","v":""},{"$f":"IF(ROWS($Z$2:AB154)>ROW(INDIRECT(ADDRESS(MAX(AA:AA),2))),\"\",INDEX(INDIRECT(\"$D$2\"&\":$D$\"&MATCH(MAX(AA:AA),AA:AA,0)),MATCH(ROWS(D$1:$D153),INDIRECT(\"$AA$2\"&\":$AA$\"&MATCH(MAX(AA:AA),AA:AA,0)),0)))","v":""}]
[null,null,null,null,null,null,null,null,null,null,null,null,null,null,null,null,null,null,null,null,null,null,null,null,null,null,{"$f":"IF(COUNTIF(D$2:$D155,D155)=1, MAX(Z$1:$AA154)+1,\"\")","v":""},{"$f":"IF(ROWS($Z$2:AB155)>ROW(INDIRECT(ADDRESS(MAX(AA:AA),2))),\"\",INDEX(INDIRECT(\"$D$2\"&\":$D$\"&MATCH(MAX(AA:AA),AA:AA,0)),MATCH(ROWS(D$1:$D154),INDIRECT(\"$AA$2\"&\":$AA$\"&MATCH(MAX(AA:AA),AA:AA,0)),0)))","v":""}]
[null,null,null,null,null,null,null,null,null,null,null,null,null,null,null,null,null,null,null,null,null,null,null,null,null,null,{"$f":"IF(COUNTIF(D$2:$D156,D156)=1, MAX(Z$1:$AA155)+1,\"\")","v":""},{"$f":"IF(ROWS($Z$2:AB156)>ROW(INDIRECT(ADDRESS(MAX(AA:AA),2))),\"\",INDEX(INDIRECT(\"$D$2\"&\":$D$\"&MATCH(MAX(AA:AA),AA:AA,0)),MATCH(ROWS(D$1:$D155),INDIRECT(\"$AA$2\"&\":$AA$\"&MATCH(MAX(AA:AA),AA:AA,0)),0)))","v":""}]
[null,null,null,null,null,null,null,null,null,null,null,null,null,null,null,null,null,null,null,null,null,null,null,null,null,null,{"$f":"IF(COUNTIF(D$2:$D157,D157)=1, MAX(Z$1:$AA156)+1,\"\")","v":""},{"$f":"IF(ROWS($Z$2:AB157)>ROW(INDIRECT(ADDRESS(MAX(AA:AA),2))),\"\",INDEX(INDIRECT(\"$D$2\"&\":$D$\"&MATCH(MAX(AA:AA),AA:AA,0)),MATCH(ROWS(D$1:$D156),INDIRECT(\"$AA$2\"&\":$AA$\"&MATCH(MAX(AA:AA),AA:AA,0)),0)))","v":""}]
[null,null,null,null,null,null,null,null,null,null,null,null,null,null,null,null,null,null,null,null,null,null,null,null,null,null,{"$f":"IF(COUNTIF(D$2:$D158,D158)=1, MAX(Z$1:$AA157)+1,\"\")","v":""},{"$f":"IF(ROWS($Z$2:AB158)>ROW(INDIRECT(ADDRESS(MAX(AA:AA),2))),\"\",INDEX(INDIRECT(\"$D$2\"&\":$D$\"&MATCH(MAX(AA:AA),AA:AA,0)),MATCH(ROWS(D$1:$D157),INDIRECT(\"$AA$2\"&\":$AA$\"&MATCH(MAX(AA:AA),AA:AA,0)),0)))","v":""}]
[null,null,null,null,null,null,null,null,null,null,null,null,null,null,null,null,null,null,null,null,null,null,null,null,null,null,{"$f":"IF(COUNTIF(D$2:$D159,D159)=1, MAX(Z$1:$AA158)+1,\"\")","v":""},{"$f":"IF(ROWS($Z$2:AB159)>ROW(INDIRECT(ADDRESS(MAX(AA:AA),2))),\"\",INDEX(INDIRECT(\"$D$2\"&\":$D$\"&MATCH(MAX(AA:AA),AA:AA,0)),MATCH(ROWS(D$1:$D158),INDIRECT(\"$AA$2\"&\":$AA$\"&MATCH(MAX(AA:AA),AA:AA,0)),0)))","v":""}]
[null,null,null,null,null,null,null,null,null,null,null,null,null,null,null,null,null,null,null,null,null,null,null,null,null,null,{"$f":"IF(COUNTIF(D$2:$D160,D160)=1, MAX(Z$1:$AA159)+1,\"\")","v":""},{"$f":"IF(ROWS($Z$2:AB160)>ROW(INDIRECT(ADDRESS(MAX(AA:AA),2))),\"\",INDEX(INDIRECT(\"$D$2\"&\":$D$\"&MATCH(MAX(AA:AA),AA:AA,0)),MATCH(ROWS(D$1:$D159),INDIRECT(\"$AA$2\"&\":$AA$\"&MATCH(MAX(AA:AA),AA:AA,0)),0)))","v":""}]
[null,null,null,null,null,null,null,null,null,null,null,null,null,null,null,null,null,null,null,null,null,null,null,null,null,null,{"$f":"IF(COUNTIF(D$2:$D161,D161)=1, MAX(Z$1:$AA160)+1,\"\")","v":""},{"$f":"IF(ROWS($Z$2:AB161)>ROW(INDIRECT(ADDRESS(MAX(AA:AA),2))),\"\",INDEX(INDIRECT(\"$D$2\"&\":$D$\"&MATCH(MAX(AA:AA),AA:AA,0)),MATCH(ROWS(D$1:$D160),INDIRECT(\"$AA$2\"&\":$AA$\"&MATCH(MAX(AA:AA),AA:AA,0)),0)))","v":""}]
[null,null,null,null,null,null,null,null,null,null,null,null,null,null,null,null,null,null,null,null,null,null,null,null,null,null,{"$f":"IF(COUNTIF(D$2:$D162,D162)=1, MAX(Z$1:$AA161)+1,\"\")","v":""},{"$f":"IF(ROWS($Z$2:AB162)>ROW(INDIRECT(ADDRESS(MAX(AA:AA),2))),\"\",INDEX(INDIRECT(\"$D$2\"&\":$D$\"&MATCH(MAX(AA:AA),AA:AA,0)),MATCH(ROWS(D$1:$D161),INDIRECT(\"$AA$2\"&\":$AA$\"&MATCH(MAX(AA:AA),AA:AA,0)),0)))","v":""}]
[null,null,null,null,null,null,null,null,null,null,null,null,null,null,null,null,null,null,null,null,null,null,null,null,null,null,{"$f":"IF(COUNTIF(D$2:$D163,D163)=1, MAX(Z$1:$AA162)+1,\"\")","v":""},{"$f":"IF(ROWS($Z$2:AB163)>ROW(INDIRECT(ADDRESS(MAX(AA:AA),2))),\"\",INDEX(INDIRECT(\"$D$2\"&\":$D$\"&MATCH(MAX(AA:AA),AA:AA,0)),MATCH(ROWS(D$1:$D162),INDIRECT(\"$AA$2\"&\":$AA$\"&MATCH(MAX(AA:AA),AA:AA,0)),0)))","v":""}]
[null,null,null,null,null,null,null,null,null,null,null,null,null,null,null,null,null,null,null,null,null,null,null,null,null,null,{"$f":"IF(COUNTIF(D$2:$D164,D164)=1, MAX(Z$1:$AA163)+1,\"\")","v":""},{"$f":"IF(ROWS($Z$2:AB164)>ROW(INDIRECT(ADDRESS(MAX(AA:AA),2))),\"\",INDEX(INDIRECT(\"$D$2\"&\":$D$\"&MATCH(MAX(AA:AA),AA:AA,0)),MATCH(ROWS(D$1:$D163),INDIRECT(\"$AA$2\"&\":$AA$\"&MATCH(MAX(AA:AA),AA:AA,0)),0)))","v":""}]
[null,null,null,null,null,null,null,null,null,null,null,null,null,null,null,null,null,null,null,null,null,null,null,null,null,null,{"$f":"IF(COUNTIF(D$2:$D165,D165)=1, MAX(Z$1:$AA164)+1,\"\")","v":""},{"$f":"IF(ROWS($Z$2:AB165)>ROW(INDIRECT(ADDRESS(MAX(AA:AA),2))),\"\",INDEX(INDIRECT(\"$D$2\"&\":$D$\"&MATCH(MAX(AA:AA),AA:AA,0)),MATCH(ROWS(D$1:$D164),INDIRECT(\"$AA$2\"&\":$AA$\"&MATCH(MAX(AA:AA),AA:AA,0)),0)))","v":""}]
[null,null,null,null,null,null,null,null,null,null,null,null,null,null,null,null,null,null,null,null,null,null,null,null,null,null,{"$f":"IF(COUNTIF(D$2:$D166,D166)=1, MAX(Z$1:$AA165)+1,\"\")","v":""},{"$f":"IF(ROWS($Z$2:AB166)>ROW(INDIRECT(ADDRESS(MAX(AA:AA),2))),\"\",INDEX(INDIRECT(\"$D$2\"&\":$D$\"&MATCH(MAX(AA:AA),AA:AA,0)),MATCH(ROWS(D$1:$D165),INDIRECT(\"$AA$2\"&\":$AA$\"&MATCH(MAX(AA:AA),AA:AA,0)),0)))","v":""}]
[null,null,null,null,null,null,null,null,null,null,null,null,null,null,null,null,null,null,null,null,null,null,null,null,null,null,{"$f":"IF(COUNTIF(D$2:$D167,D167)=1, MAX(Z$1:$AA166)+1,\"\")","v":""},{"$f":"IF(ROWS($Z$2:AB167)>ROW(INDIRECT(ADDRESS(MAX(AA:AA),2))),\"\",INDEX(INDIRECT(\"$D$2\"&\":$D$\"&MATCH(MAX(AA:AA),AA:AA,0)),MATCH(ROWS(D$1:$D166),INDIRECT(\"$AA$2\"&\":$AA$\"&MATCH(MAX(AA:AA),AA:AA,0)),0)))","v":""}]
[null,null,null,null,null,null,null,null,null,null,null,null,null,null,null,null,null,null,null,null,null,null,null,null,null,null,{"$f":"IF(COUNTIF(D$2:$D168,D168)=1, MAX(Z$1:$AA167)+1,\"\")","v":""},{"$f":"IF(ROWS($Z$2:AB168)>ROW(INDIRECT(ADDRESS(MAX(AA:AA),2))),\"\",INDEX(INDIRECT(\"$D$2\"&\":$D$\"&MATCH(MAX(AA:AA),AA:AA,0)),MATCH(ROWS(D$1:$D167),INDIRECT(\"$AA$2\"&\":$AA$\"&MATCH(MAX(AA:AA),AA:AA,0)),0)))","v":""}]
[null,null,null,null,null,null,null,null,null,null,null,null,null,null,null,null,null,null,null,null,null,null,null,null,null,null,{"$f":"IF(COUNTIF(D$2:$D169,D169)=1, MAX(Z$1:$AA168)+1,\"\")","v":""},{"$f":"IF(ROWS($Z$2:AB169)>ROW(INDIRECT(ADDRESS(MAX(AA:AA),2))),\"\",INDEX(INDIRECT(\"$D$2\"&\":$D$\"&MATCH(MAX(AA:AA),AA:AA,0)),MATCH(ROWS(D$1:$D168),INDIRECT(\"$AA$2\"&\":$AA$\"&MATCH(MAX(AA:AA),AA:AA,0)),0)))","v":""}]
[null,null,null,null,null,null,null,null,null,null,null,null,null,null,null,null,null,null,null,null,null,null,null,null,null,null,{"$f":"IF(COUNTIF(D$2:$D170,D170)=1, MAX(Z$1:$AA169)+1,\"\")","v":""},{"$f":"IF(ROWS($Z$2:AB170)>ROW(INDIRECT(ADDRESS(MAX(AA:AA),2))),\"\",INDEX(INDIRECT(\"$D$2\"&\":$D$\"&MATCH(MAX(AA:AA),AA:AA,0)),MATCH(ROWS(D$1:$D169),INDIRECT(\"$AA$2\"&\":$AA$\"&MATCH(MAX(AA:AA),AA:AA,0)),0)))","v":""}]
[null,null,null,null,null,null,null,null,null,null,null,null,null,null,null,null,null,null,null,null,null,null,null,null,null,null,{"$f":"IF(COUNTIF(D$2:$D171,D171)=1, MAX(Z$1:$AA170)+1,\"\")","v":""},{"$f":"IF(ROWS($Z$2:AB171)>ROW(INDIRECT(ADDRESS(MAX(AA:AA),2))),\"\",INDEX(INDIRECT(\"$D$2\"&\":$D$\"&MATCH(MAX(AA:AA),AA:AA,0)),MATCH(ROWS(D$1:$D170),INDIRECT(\"$AA$2\"&\":$AA$\"&MATCH(MAX(AA:AA),AA:AA,0)),0)))","v":""}]
[null,null,null,null,null,null,null,null,null,null,null,null,null,null,null,null,null,null,null,null,null,null,null,null,null,null,{"$f":"IF(COUNTIF(D$2:$D172,D172)=1, MAX(Z$1:$AA171)+1,\"\")","v":""},{"$f":"IF(ROWS($Z$2:AB172)>ROW(INDIRECT(ADDRESS(MAX(AA:AA),2))),\"\",INDEX(INDIRECT(\"$D$2\"&\":$D$\"&MATCH(MAX(AA:AA),AA:AA,0)),MATCH(ROWS(D$1:$D171),INDIRECT(\"$AA$2\"&\":$AA$\"&MATCH(MAX(AA:AA),AA:AA,0)),0)))","v":""}]
[null,null,null,null,null,null,null,null,null,null,null,null,null,null,null,null,null,null,null,null,null,null,null,null,null,null,{"$f":"IF(COUNTIF(D$2:$D173,D173)=1, MAX(Z$1:$AA172)+1,\"\")","v":""},{"$f":"IF(ROWS($Z$2:AB173)>ROW(INDIRECT(ADDRESS(MAX(AA:AA),2))),\"\",INDEX(INDIRECT(\"$D$2\"&\":$D$\"&MATCH(MAX(AA:AA),AA:AA,0)),MATCH(ROWS(D$1:$D172),INDIRECT(\"$AA$2\"&\":$AA$\"&MATCH(MAX(AA:AA),AA:AA,0)),0)))","v":""}]
[null,null,null,null,null,null,null,null,null,null,null,null,null,null,null,null,null,null,null,null,null,null,null,null,null,null,{"$f":"IF(COUNTIF(D$2:$D174,D174)=1, MAX(Z$1:$AA173)+1,\"\")","v":""},{"$f":"IF(ROWS($Z$2:AB174)>ROW(INDIRECT(ADDRESS(MAX(AA:AA),2))),\"\",INDEX(INDIRECT(\"$D$2\"&\":$D$\"&MATCH(MAX(AA:AA),AA:AA,0)),MATCH(ROWS(D$1:$D173),INDIRECT(\"$AA$2\"&\":$AA$\"&MATCH(MAX(AA:AA),AA:AA,0)),0)))","v":""}]
[null,null,null,null,null,null,null,null,null,null,null,null,null,null,null,null,null,null,null,null,null,null,null,null,null,null,{"$f":"IF(COUNTIF(D$2:$D175,D175)=1, MAX(Z$1:$AA174)+1,\"\")","v":""},{"$f":"IF(ROWS($Z$2:AB175)>ROW(INDIRECT(ADDRESS(MAX(AA:AA),2))),\"\",INDEX(INDIRECT(\"$D$2\"&\":$D$\"&MATCH(MAX(AA:AA),AA:AA,0)),MATCH(ROWS(D$1:$D174),INDIRECT(\"$AA$2\"&\":$AA$\"&MATCH(MAX(AA:AA),AA:AA,0)),0)))","v":""}]
[null,null,null,null,null,null,null,null,null,null,null,null,null,null,null,null,null,null,null,null,null,null,null,null,null,null,{"$f":"IF(COUNTIF(D$2:$D176,D176)=1, MAX(Z$1:$AA175)+1,\"\")","v":""},{"$f":"IF(ROWS($Z$2:AB176)>ROW(INDIRECT(ADDRESS(MAX(AA:AA),2))),\"\",INDEX(INDIRECT(\"$D$2\"&\":$D$\"&MATCH(MAX(AA:AA),AA:AA,0)),MATCH(ROWS(D$1:$D175),INDIRECT(\"$AA$2\"&\":$AA$\"&MATCH(MAX(AA:AA),AA:AA,0)),0)))","v":""}]
[null,null,null,null,null,null,null,null,null,null,null,null,null,null,null,null,null,null,null,null,null,null,null,null,null,null,{"$f":"IF(COUNTIF(D$2:$D177,D177)=1, MAX(Z$1:$AA176)+1,\"\")","v":""},{"$f":"IF(ROWS($Z$2:AB177)>ROW(INDIRECT(ADDRESS(MAX(AA:AA),2))),\"\",INDEX(INDIRECT(\"$D$2\"&\":$D$\"&MATCH(MAX(AA:AA),AA:AA,0)),MATCH(ROWS(D$1:$D176),INDIRECT(\"$AA$2\"&\":$AA$\"&MATCH(MAX(AA:AA),AA:AA,0)),0)))","v":""}]
[null,null,null,null,null,null,null,null,null,null,null,null,null,null,null,null,null,null,null,null,null,null,null,null,null,null,{"$f":"IF(COUNTIF(D$2:$D178,D178)=1, MAX(Z$1:$AA177)+1,\"\")","v":""},{"$f":"IF(ROWS($Z$2:AB178)>ROW(INDIRECT(ADDRESS(MAX(AA:AA),2))),\"\",INDEX(INDIRECT(\"$D$2\"&\":$D$\"&MATCH(MAX(AA:AA),AA:AA,0)),MATCH(ROWS(D$1:$D177),INDIRECT(\"$AA$2\"&\":$AA$\"&MATCH(MAX(AA:AA),AA:AA,0)),0)))","v":""}]
[null,null,null,null,null,null,null,null,null,null,null,null,null,null,null,null,null,null,null,null,null,null,null,null,null,null,{"$f":"IF(COUNTIF(D$2:$D179,D179)=1, MAX(Z$1:$AA178)+1,\"\")","v":""},{"$f":"IF(ROWS($Z$2:AB179)>ROW(INDIRECT(ADDRESS(MAX(AA:AA),2))),\"\",INDEX(INDIRECT(\"$D$2\"&\":$D$\"&MATCH(MAX(AA:AA),AA:AA,0)),MATCH(ROWS(D$1:$D178),INDIRECT(\"$AA$2\"&\":$AA$\"&MATCH(MAX(AA:AA),AA:AA,0)),0)))","v":""}]
[null,null,null,null,null,null,null,null,null,null,null,null,null,null,null,null,null,null,null,null,null,null,null,null,null,null,{"$f":"IF(COUNTIF(D$2:$D180,D180)=1, MAX(Z$1:$AA179)+1,\"\")","v":""},{"$f":"IF(ROWS($Z$2:AB180)>ROW(INDIRECT(ADDRESS(MAX(AA:AA),2))),\"\",INDEX(INDIRECT(\"$D$2\"&\":$D$\"&MATCH(MAX(AA:AA),AA:AA,0)),MATCH(ROWS(D$1:$D179),INDIRECT(\"$AA$2\"&\":$AA$\"&MATCH(MAX(AA:AA),AA:AA,0)),0)))","v":""}]
[null,null,null,null,null,null,null,null,null,null,null,null,null,null,null,null,null,null,null,null,null,null,null,null,null,null,{"$f":"IF(COUNTIF(D$2:$D181,D181)=1, MAX(Z$1:$AA180)+1,\"\")","v":""},{"$f":"IF(ROWS($Z$2:AB181)>ROW(INDIRECT(ADDRESS(MAX(AA:AA),2))),\"\",INDEX(INDIRECT(\"$D$2\"&\":$D$\"&MATCH(MAX(AA:AA),AA:AA,0)),MATCH(ROWS(D$1:$D180),INDIRECT(\"$AA$2\"&\":$AA$\"&MATCH(MAX(AA:AA),AA:AA,0)),0)))","v":""}]
[null,null,null,null,null,null,null,null,null,null,null,null,null,null,null,null,null,null,null,null,null,null,null,null,null,null,{"$f":"IF(COUNTIF(D$2:$D182,D182)=1, MAX(Z$1:$AA181)+1,\"\")","v":""},{"$f":"IF(ROWS($Z$2:AB182)>ROW(INDIRECT(ADDRESS(MAX(AA:AA),2))),\"\",INDEX(INDIRECT(\"$D$2\"&\":$D$\"&MATCH(MAX(AA:AA),AA:AA,0)),MATCH(ROWS(D$1:$D181),INDIRECT(\"$AA$2\"&\":$AA$\"&MATCH(MAX(AA:AA),AA:AA,0)),0)))","v":""}]
[null,null,null,null,null,null,null,null,null,null,null,null,null,null,null,null,null,null,null,null,null,null,null,null,null,null,{"$f":"IF(COUNTIF(D$2:$D183,D183)=1, MAX(Z$1:$AA182)+1,\"\")","v":""},{"$f":"IF(ROWS($Z$2:AB183)>ROW(INDIRECT(ADDRESS(MAX(AA:AA),2))),\"\",INDEX(INDIRECT(\"$D$2\"&\":$D$\"&MATCH(MAX(AA:AA),AA:AA,0)),MATCH(ROWS(D$1:$D182),INDIRECT(\"$AA$2\"&\":$AA$\"&MATCH(MAX(AA:AA),AA:AA,0)),0)))","v":""}]
[null,null,null,null,null,null,null,null,null,null,null,null,null,null,null,null,null,null,null,null,null,null,null,null,null,null,{"$f":"IF(COUNTIF(D$2:$D184,D184)=1, MAX(Z$1:$AA183)+1,\"\")","v":""},{"$f":"IF(ROWS($Z$2:AB184)>ROW(INDIRECT(ADDRESS(MAX(AA:AA),2))),\"\",INDEX(INDIRECT(\"$D$2\"&\":$D$\"&MATCH(MAX(AA:AA),AA:AA,0)),MATCH(ROWS(D$1:$D183),INDIRECT(\"$AA$2\"&\":$AA$\"&MATCH(MAX(AA:AA),AA:AA,0)),0)))","v":""}]
[null,null,null,null,null,null,null,null,null,null,null,null,null,null,null,null,null,null,null,null,null,null,null,null,null,null,{"$f":"IF(COUNTIF(D$2:$D185,D185)=1, MAX(Z$1:$AA184)+1,\"\")","v":""},{"$f":"IF(ROWS($Z$2:AB185)>ROW(INDIRECT(ADDRESS(MAX(AA:AA),2))),\"\",INDEX(INDIRECT(\"$D$2\"&\":$D$\"&MATCH(MAX(AA:AA),AA:AA,0)),MATCH(ROWS(D$1:$D184),INDIRECT(\"$AA$2\"&\":$AA$\"&MATCH(MAX(AA:AA),AA:AA,0)),0)))","v":""}]
[null,null,null,null,null,null,null,null,null,null,null,null,null,null,null,null,null,null,null,null,null,null,null,null,null,null,{"$f":"IF(COUNTIF(D$2:$D186,D186)=1, MAX(Z$1:$AA185)+1,\"\")","v":""},{"$f":"IF(ROWS($Z$2:AB186)>ROW(INDIRECT(ADDRESS(MAX(AA:AA),2))),\"\",INDEX(INDIRECT(\"$D$2\"&\":$D$\"&MATCH(MAX(AA:AA),AA:AA,0)),MATCH(ROWS(D$1:$D185),INDIRECT(\"$AA$2\"&\":$AA$\"&MATCH(MAX(AA:AA),AA:AA,0)),0)))","v":""}]
[null,null,null,null,null,null,null,null,null,null,null,null,null,null,null,null,null,null,null,null,null,null,null,null,null,null,{"$f":"IF(COUNTIF(D$2:$D187,D187)=1, MAX(Z$1:$AA186)+1,\"\")","v":""},{"$f":"IF(ROWS($Z$2:AB187)>ROW(INDIRECT(ADDRESS(MAX(AA:AA),2))),\"\",INDEX(INDIRECT(\"$D$2\"&\":$D$\"&MATCH(MAX(AA:AA),AA:AA,0)),MATCH(ROWS(D$1:$D186),INDIRECT(\"$AA$2\"&\":$AA$\"&MATCH(MAX(AA:AA),AA:AA,0)),0)))","v":""}]
[null,null,null,null,null,null,null,null,null,null,null,null,null,null,null,null,null,null,null,null,null,null,null,null,null,null,{"$f":"IF(COUNTIF(D$2:$D188,D188)=1, MAX(Z$1:$AA187)+1,\"\")","v":""},{"$f":"IF(ROWS($Z$2:AB188)>ROW(INDIRECT(ADDRESS(MAX(AA:AA),2))),\"\",INDEX(INDIRECT(\"$D$2\"&\":$D$\"&MATCH(MAX(AA:AA),AA:AA,0)),MATCH(ROWS(D$1:$D187),INDIRECT(\"$AA$2\"&\":$AA$\"&MATCH(MAX(AA:AA),AA:AA,0)),0)))","v":""}]
[null,null,null,null,null,null,null,null,null,null,null,null,null,null,null,null,null,null,null,null,null,null,null,null,null,null,{"$f":"IF(COUNTIF(D$2:$D189,D189)=1, MAX(Z$1:$AA188)+1,\"\")","v":""},{"$f":"IF(ROWS($Z$2:AB189)>ROW(INDIRECT(ADDRESS(MAX(AA:AA),2))),\"\",INDEX(INDIRECT(\"$D$2\"&\":$D$\"&MATCH(MAX(AA:AA),AA:AA,0)),MATCH(ROWS(D$1:$D188),INDIRECT(\"$AA$2\"&\":$AA$\"&MATCH(MAX(AA:AA),AA:AA,0)),0)))","v":""}]
[null,null,null,null,null,null,null,null,null,null,null,null,null,null,null,null,null,null,null,null,null,null,null,null,null,null,{"$f":"IF(COUNTIF(D$2:$D190,D190)=1, MAX(Z$1:$AA189)+1,\"\")","v":""},{"$f":"IF(ROWS($Z$2:AB190)>ROW(INDIRECT(ADDRESS(MAX(AA:AA),2))),\"\",INDEX(INDIRECT(\"$D$2\"&\":$D$\"&MATCH(MAX(AA:AA),AA:AA,0)),MATCH(ROWS(D$1:$D189),INDIRECT(\"$AA$2\"&\":$AA$\"&MATCH(MAX(AA:AA),AA:AA,0)),0)))","v":""}]